Workbook

Sheet obsah
A1: OBSAH
A3: Q7 | B3: Které aspekty související s komplexním rozvojem dítěte/žáka/studenta se podle Vás daří Vaší škole úspěšně realizovat?
A4: Q8 | B4: Které aspekty související s komplexním rozvojem dítěte/žáka/studenta se podle Vás nedaří Vaší škole realizovat, a uvítali byste v tomto ohledu podporu?
A5: Q9 | B5: Které z následujících položek nejvíce limitují komplexní rozvoj dětí/žáků/studentů ve Vaší škole?
A6: Q10_1 | B6: Vaše škola v posledních 12 měsících sociálně či jinak znevýhodněným dětem/žákům/studentům některou z vybraných položek? q10_1 Školní obědy
A7: Q10_2 | B7: Vaše škola v posledních 12 měsících sociálně či jinak znevýhodněným dětem/žákům/studentům některou z vybraných položek? q10_2 Stravování mimo obědy (svačiny, ovoce a zelenina, pitný režim mimo kohoutkovou vodu atp.)
A8: Q10_3 | B8: Vaše škola v posledních 12 měsících sociálně či jinak znevýhodněným dětem/žákům/studentům některou z vybraných položek? q10_3 Školní pomůcky (psací potřeby, sešity, učebnice atp.)
A9: Q10_4 | B9: Vaše škola v posledních 12 měsících sociálně či jinak znevýhodněným dětem/žákům/studentům některou z vybraných položek? q10_4 Vstupné (např. do divadla, planetária, knihovny, ZOO atp.)
A10: Q10_5 | B10: Vaše škola v posledních 12 měsících sociálně či jinak znevýhodněným dětem/žákům/studentům některou z vybraných položek? q10_5 Náklady spojené s účastí na akcích pořádaných pro danou třídu (školní výlet, škola v přírodě atp.)
A11: Q10_6 | B11: Vaše škola v posledních 12 měsících sociálně či jinak znevýhodněným dětem/žákům/studentům některou z vybraných položek? q10_6 Náklady spojené s účastí na volitelných celoškolních akcích (např. zahraniční exkurze, lyžařské zájezdy atp.)
A12: Q10_7 | B12: Vaše škola v posledních 12 měsících sociálně či jinak znevýhodněným dětem/žákům/studentům některou z vybraných položek? q10_7 Náklady spojené s účastí na zájmovém vzdělávání (školní družiny, školní kluby, kroužky ve škole)
A13: Q10_8 | B13: Vaše škola v posledních 12 měsících sociálně či jinak znevýhodněným dětem/žákům/studentům některou z vybraných položek? q10_8 Poplatky za kroužky konané mimo školu
A14: Q10_9 | B14: Vaše škola v posledních 12 měsících sociálně či jinak znevýhodněným dětem/žákům/studentům některou z vybraných položek? q10_9 Další materiální potřeby dítěte/žáka/studenta (např. vybavení na školní akce, školní taška, vybavení na tělesnou výchovu atp.)
A15: Q10_10 | B15: Vaše škola v posledních 12 měsících sociálně či jinak znevýhodněným dětem/žákům/studentům některou z vybraných položek? q10_10 Technické vybavení (notebook, tablet, internetové připojení atp.)
A16: Q10_11 | B16: Vaše škola v posledních 12 měsících sociálně či jinak znevýhodněným dětem/žákům/studentům některou z vybraných položek? q10_11 Doučování

Sheet Q7
A1: Které aspekty související s komplexním rozvojem dítěte/žáka/studenta se podle Vás daří Vaší škole úspěšně realizovat?
A3: zpět na obsah | D3: Kraj
C4: Celkem | D4: Hlavní město Praha | E4: Jihočeský kraj | F4: Jihomoravský kraj | G4: Karlovarský kraj | H4: Kraj Vysočina | I4: Královéhradecký kraj | J4: Liberecký kraj | K4: Moravskoslezský kraj | L4: Olomoucký kraj | M4: Pardubický kraj | N4: Plzeňský kraj | O4: Středočeský kraj | P4: Ústecký kraj | Q4: Zlínský kraj
A5: Počet respondentů (N) | C5: 4324 | D5: 340 | E5: 272 | F5: 539 | G5: 100 | H5: 241 | I5: 261 | J5: 197 | K5: 397 | L5: 318 | M5: 259 | N5: 218 | O5: 629 | P5: 296 | Q5: 256
A7: Četnost odpovědí | B7: Rozvoj kreativity a tvořivosti | C7: 3442 | D7: 269 | E7: 220 | F7: 412 | G7: 80 | H7: 185 | I7: 206 | J7: 158 | K7: 321 | L7: 252 | M7: 202 | N7: 176 | O7: 511 | P7: 236 | Q7: 214
B8: Rozvoj potenciálu každého dítěte (individuální přístup ke vzdělávání, rozvoji a výchově dítěte) | C8: 3435 | D8: 273 | E8: 212 | F8: 413 | G8: 86 | H8: 199 | I8: 211 | J8: 161 | K8: 294 | L8: 257 | M8: 205 | N8: 179 | O8: 498 | P8: 239 | Q8: 207
B9: Mezilidské vztahy, podpora vzájemné komunikace a respektování vzájemných odlišností (sociální výchova) | C9: 3234 | D9: 279 | E9: 202 | F9: 394 | G9: 77 | H9: 174 | I9: 190 | J9: 149 | K9: 284 | L9: 230 | M9: 180 | N9: 164 | O9: 487 | P9: 223 | Q9: 201
B10: Rozvoj osobnosti dítěte (osobnostní výchova) | C10: 3081 | D10: 245 | E10: 186 | F10: 355 | G10: 75 | H10: 168 | I10: 176 | J10: 152 | K10: 289 | L10: 233 | M10: 179 | N10: 165 | O10: 460 | P10: 222 | Q10: 175
B11: Zdravý životní styl (výchova ke zdraví, rozvoj pohybových aktivit) | C11: 3068 | D11: 237 | E11: 191 | F11: 354 | G11: 69 | H11: 168 | I11: 183 | J11: 161 | K11: 299 | L11: 237 | M11: 183 | N11: 155 | O11: 428 | P11: 217 | Q11: 185
B12: Pozitivní vztah ke škole | C12: 3019 | D12: 237 | E12: 190 | F12: 374 | G12: 70 | H12: 169 | I12: 185 | J12: 128 | K12: 281 | L12: 229 | M12: 169 | N12: 156 | O12: 434 | P12: 216 | Q12: 181
B13: Podpora výuky v přírodě | C13: 2644 | D13: 193 | E13: 170 | F13: 299 | G13: 59 | H13: 153 | I13: 174 | J13: 128 | K13: 220 | L13: 207 | M13: 172 | N13: 151 | O13: 374 | P13: 192 | Q13: 151
B14: Well-being (zajištění tělesné a duševní pohody dětí) | C14: 2341 | D14: 198 | E14: 144 | F14: 255 | G14: 58 | H14: 122 | I14: 139 | J14: 118 | K14: 231 | L14: 185 | M14: 130 | N14: 118 | O14: 349 | P14: 148 | Q14: 145
B15: Rozvoj schopnosti učit se | C15: 2062 | D15: 179 | E15: 124 | F15: 251 | G15: 44 | H15: 110 | I15: 113 | J15: 105 | K15: 197 | L15: 165 | M15: 110 | N15: 106 | O15: 297 | P15: 136 | Q15: 125
B16: Rozvoj digitálních kompetencí | C16: 1351 | D16: 92 | E16: 73 | F16: 158 | G16: 35 | H16: 79 | I16: 107 | J16: 65 | K16: 125 | L16: 86 | M16: 88 | N16: 78 | O16: 182 | P16: 113 | Q16: 70
B17: Multikulturní rozvoj a rozvoj interkulturních kompetencí | C17: 959 | D17: 194 | E17: 55 | F17: 88 | G17: 23 | H17: 36 | I17: 39 | J17: 49 | K17: 81 | L17: 57 | M17: 53 | N17: 43 | O17: 121 | P17: 67 | Q17: 53
B18: Prevence (primární prevence, pozitivní trávení volného času, kyberbezpečnost, práce s dezinformacemi atp.) | C18: 931 | D18: 78 | E18: 44 | F18: 86 | G18: 16 | H18: 65 | I18: 64 | J18: 38 | K18: 86 | L18: 72 | M18: 62 | N18: 37 | O18: 132 | P18: 94 | Q18: 57
B19: Kritické myšlení a vnímání souvislostí | C19: 824 | D19: 71 | E19: 53 | F19: 100 | G19: 11 | H19: 44 | I19: 39 | J19: 30 | K19: 94 | L19: 52 | M19: 50 | N19: 40 | O19: 140 | P19: 51 | Q19: 48
B20: Vzdělávání a výchova k udržitelnosti | C20: 476 | D20: 64 | E20: 34 | F20: 51 | G20: 7 | H20: 16 | I20: 32 | J20: 25 | K20: 35 | L20: 32 | M20: 33 | N20: 20 | O20: 69 | P20: 37 | Q20: 21
B21: Formování občanských postojů (spojeno např. s výchovou demokratického občana) | C21: 303 | D21: 28 | E21: 16 | F21: 43 | G21: 5 | H21: 17 | I21: 15 | J21: 9 | K21: 23 | L21: 19 | M21: 19 | N21: 19 | O21: 44 | P21: 30 | Q21: 16
B22: Rozvoj podnikavosti | C22: 98 | D22: 9 | E22: 6 | F22: 11 | G22: 1 | H22: 7 | I22: 8 | J22: 5 | K22: 13 | L22: 10 | M22: 5 | N22: 3 | O22: 11 | P22: 4 | Q22: 5
B23: Růstové myšlení, výchova lídrů (osvojení principů) | C23: 93 | D23: 7 | E23: 3 | F23: 8 | G23: 2 | H23: 11 | I23: 6 | J23: 8 | K23: 5 | L23: 9 | M23: 4 | N23: 2 | O23: 11 | P23: 9 | Q23: 8
B24: Výchova k dobrovolnictví | C24: 93 | D24: 7 | E24: 7 | F24: 10 | G24: 1 | H24: 8 | I24: 7 | J24: 8 | K24: 7 | L24: 10 | M24: 7 | N24: 2 | O24: 10 | P24: 4 | Q24: 5
B25: Nedaří se nám realizovat žádný z uvedených aspektů | C25: 5 | D25: 0 | E25: 1 | F25: 1 | G25: 0 | H25: 0 | I25: 0 | J25: 1 | K25: 1 | L25: 1 | M25: 0 | N25: 0 | O25: 0 | P25: 0 | Q25: 0
A27: Relativní četnost odpovědí (%) | B27: Rozvoj kreativity a tvořivosti | C27: 0.7960222017 | D27: 0.7911764706 | E27: 0.8088235294 | F27: 0.7643784787 | G27: 0.8 | H27: 0.7676348548 | I27: 0.7892720307 | J27: 0.8020304569 | K27: 0.8085642317 | L27: 0.7924528302 | M27: 0.7799227799 | N27: 0.8073394495 | O27: 0.8124006359 | P27: 0.7972972973 | Q27: 0.8359375
B28: Rozvoj potenciálu každého dítěte (individuální přístup ke vzdělávání, rozvoji a výchově dítěte) | C28: 0.7944033302 | D28: 0.8029411765 | E28: 0.7794117647 | F28: 0.7662337662 | G28: 0.86 | H28: 0.8257261411 | I28: 0.8084291188 | J28: 0.8172588832 | K28: 0.7405541562 | L28: 0.8081761006 | M28: 0.7915057915 | N28: 0.8211009174 | O28: 0.7917329094 | P28: 0.8074324324 | Q28: 0.80859375
B29: Mezilidské vztahy, podpora vzájemné komunikace a respektování vzájemných odlišností (sociální výchova) | C29: 0.7479185939 | D29: 0.8205882353 | E29: 0.7426470588 | F29: 0.7309833024 | G29: 0.77 | H29: 0.7219917012 | I29: 0.7279693487 | J29: 0.7563451777 | K29: 0.7153652393 | L29: 0.7232704403 | M29: 0.694980695 | N29: 0.752293578 | O29: 0.7742448331 | P29: 0.7533783784 | Q29: 0.78515625
B30: Rozvoj osobnosti dítěte (osobnostní výchova) | C30: 0.7125346901 | D30: 0.7205882353 | E30: 0.6838235294 | F30: 0.6586270872 | G30: 0.75 | H30: 0.6970954357 | I30: 0.6743295019 | J30: 0.7715736041 | K30: 0.7279596977 | L30: 0.7327044025 | M30: 0.6911196911 | N30: 0.7568807339 | O30: 0.7313195548 | P30: 0.75 | Q30: 0.68359375
B31: Zdravý životní styl (výchova ke zdraví, rozvoj pohybových aktivit) | C31: 0.7095282146 | D31: 0.6970588235 | E31: 0.7022058824 | F31: 0.6567717996 | G31: 0.69 | H31: 0.6970954357 | I31: 0.7011494253 | J31: 0.8172588832 | K31: 0.7531486146 | L31: 0.7452830189 | M31: 0.7065637066 | N31: 0.7110091743 | O31: 0.680445151 | P31: 0.7331081081 | Q31: 0.72265625
B32: Pozitivní vztah ke škole | C32: 0.6981961147 | D32: 0.6970588235 | E32: 0.6985294118 | F32: 0.693877551 | G32: 0.7 | H32: 0.7012448133 | I32: 0.7088122605 | J32: 0.6497461929 | K32: 0.7078085642 | L32: 0.7201257862 | M32: 0.6525096525 | N32: 0.7155963303 | O32: 0.6899841017 | P32: 0.7297297297 | Q32: 0.70703125
B33: Podpora výuky v přírodě | C33: 0.6114708603 | D33: 0.5676470588 | E33: 0.625 | F33: 0.5547309833 | G33: 0.59 | H33: 0.6348547718 | I33: 0.6666666667 | J33: 0.6497461929 | K33: 0.5541561713 | L33: 0.6509433962 | M33: 0.6640926641 | N33: 0.6926605505 | O33: 0.5945945946 | P33: 0.6486486486 | Q33: 0.58984375
B34: Well-being (zajištění tělesné a duševní pohody dětí) | C34: 0.5413968548 | D34: 0.5823529412 | E34: 0.5294117647 | F34: 0.4730983302 | G34: 0.58 | H34: 0.5062240664 | I34: 0.5325670498 | J34: 0.5989847716 | K34: 0.5818639798 | L34: 0.5817610063 | M34: 0.5019305019 | N34: 0.5412844037 | O34: 0.5548489666 | P34: 0.5 | Q34: 0.56640625
B35: Rozvoj schopnosti učit se | C35: 0.4768732655 | D35: 0.5264705882 | E35: 0.4558823529 | F35: 0.46567718 | G35: 0.44 | H35: 0.4564315353 | I35: 0.4329501916 | J35: 0.5329949239 | K35: 0.4962216625 | L35: 0.5188679245 | M35: 0.4247104247 | N35: 0.4862385321 | O35: 0.4721780604 | P35: 0.4594594595 | Q35: 0.48828125
B36: Rozvoj digitálních kompetencí | C36: 0.3124421832 | D36: 0.2705882353 | E36: 0.2683823529 | F36: 0.293135436 | G36: 0.35 | H36: 0.3278008299 | I36: 0.4099616858 | J36: 0.3299492386 | K36: 0.314861461 | L36: 0.2704402516 | M36: 0.3397683398 | N36: 0.3577981651 | O36: 0.2893481717 | P36: 0.3817567568 | Q36: 0.2734375
B37: Multikulturní rozvoj a rozvoj interkulturních kompetencí | C37: 0.2217853839 | D37: 0.5705882353 | E37: 0.2022058824 | F37: 0.1632653061 | G37: 0.23 | H37: 0.1493775934 | I37: 0.1494252874 | J37: 0.2487309645 | K37: 0.2040302267 | L37: 0.179245283 | M37: 0.2046332046 | N37: 0.1972477064 | O37: 0.1923688394 | P37: 0.2263513514 | Q37: 0.20703125
B38: Prevence (primární prevence, pozitivní trávení volného času, kyberbezpečnost, práce s dezinformacemi atp.) | C38: 0.2153098982 | D38: 0.2294117647 | E38: 0.1617647059 | F38: 0.159554731 | G38: 0.16 | H38: 0.2697095436 | I38: 0.245210728 | J38: 0.192893401 | K38: 0.2166246851 | L38: 0.2264150943 | M38: 0.2393822394 | N38: 0.1697247706 | O38: 0.2098569157 | P38: 0.3175675676 | Q38: 0.22265625
B39: Kritické myšlení a vnímání souvislostí | C39: 0.1905642923 | D39: 0.2088235294 | E39: 0.1948529412 | F39: 0.185528757 | G39: 0.11 | H39: 0.1825726141 | I39: 0.1494252874 | J39: 0.152284264 | K39: 0.2367758186 | L39: 0.1635220126 | M39: 0.1930501931 | N39: 0.1834862385 | O39: 0.2225755167 | P39: 0.1722972973 | Q39: 0.1875
B40: Vzdělávání a výchova k udržitelnosti | C40: 0.1100832562 | D40: 0.1882352941 | E40: 0.125 | F40: 0.09461966605 | G40: 0.07 | H40: 0.06639004149 | I40: 0.122605364 | J40: 0.1269035533 | K40: 0.08816120907 | L40: 0.1006289308 | M40: 0.1274131274 | N40: 0.09174311927 | O40: 0.1096979332 | P40: 0.125 | Q40: 0.08203125
B41: Formování občanských postojů (spojeno např. s výchovou demokratického občana) | C41: 0.07007400555 | D41: 0.08235294118 | E41: 0.05882352941 | F41: 0.07977736549 | G41: 0.05 | H41: 0.07053941909 | I41: 0.05747126437 | J41: 0.04568527919 | K41: 0.05793450882 | L41: 0.05974842767 | M41: 0.07335907336 | N41: 0.0871559633 | O41: 0.06995230525 | P41: 0.1013513514 | Q41: 0.0625
B42: Rozvoj podnikavosti | C42: 0.02266419981 | D42: 0.02647058824 | E42: 0.02205882353 | F42: 0.02040816327 | G42: 0.01 | H42: 0.02904564315 | I42: 0.030651341 | J42: 0.02538071066 | K42: 0.03274559194 | L42: 0.03144654088 | M42: 0.01930501931 | N42: 0.01376146789 | O42: 0.01748807631 | P42: 0.01351351351 | Q42: 0.01953125
B43: Růstové myšlení, výchova lídrů (osvojení principů) | C43: 0.02150786309 | D43: 0.02058823529 | E43: 0.01102941176 | F43: 0.01484230056 | G43: 0.02 | H43: 0.04564315353 | I43: 0.02298850575 | J43: 0.04060913706 | K43: 0.01259445844 | L43: 0.02830188679 | M43: 0.01544401544 | N43: 0.009174311927 | O43: 0.01748807631 | P43: 0.03040540541 | Q43: 0.03125
B44: Výchova k dobrovolnictví | C44: 0.02150786309 | D44: 0.02058823529 | E44: 0.02573529412 | F44: 0.0185528757 | G44: 0.01 | H44: 0.03319502075 | I44: 0.02681992337 | J44: 0.04060913706 | K44: 0.01763224181 | L44: 0.03144654088 | M44: 0.02702702703 | N44: 0.009174311927 | O44: 0.01589825119 | P44: 0.01351351351 | Q44: 0.01953125
B45: Nedaří se nám realizovat žádný z uvedených aspektů | C45: 0.001156336725 | D45: 0 | E45: 0.003676470588 | F45: 0.00185528757 | G45: 0 | H45: 0 | I45: 0 | J45: 0.005076142132 | K45: 0.002518891688 | L45: 0.003144654088 | M45: 0 | N45: 0 | O45: 0 | P45: 0 | Q45: 0
A47: Statistická významnost | B47: Rozvoj kreativity a tvořivosti
B48: Rozvoj potenciálu každého dítěte (individuální přístup ke vzdělávání, rozvoji a výchově dítěte) | K48: --
B49: Mezilidské vztahy, podpora vzájemné komunikace a respektování vzájemných odlišností (sociální výchova) | D49: ++ | M49: -
B50: Rozvoj osobnosti dítěte (osobnostní výchova) | F50: --
B51: Zdravý životní styl (výchova ke zdraví, rozvoj pohybových aktivit) | F51: -- | J51: +++ | K51: +
B52: Pozitivní vztah ke škole
B53: Podpora výuky v přírodě | F53: -- | K53: - | N53: +
B54: Well-being (zajištění tělesné a duševní pohody dětí) | F54: ---
B55: Rozvoj schopnosti učit se
B56: Rozvoj digitálních kompetencí | I56: +++ | P56: ++
B57: Multikulturní rozvoj a rozvoj interkulturních kompetencí | D57: +++ | F57: --- | H57: -- | I57: --
B58: Prevence (primární prevence, pozitivní trávení volného času, kyberbezpečnost, práce s dezinformacemi atp.) | E58: - | F58: --- | H58: + | P58: +++
B59: Kritické myšlení a vnímání souvislostí | G59: - | K59: + | O59: +
B60: Vzdělávání a výchova k udržitelnosti | D60: +++ | H60: -
B61: Formování občanských postojů (spojeno např. s výchovou demokratického občana) | P61: +
B62: Rozvoj podnikavosti
B63: Růstové myšlení, výchova lídrů (osvojení principů) | H63: ++
B64: Výchova k dobrovolnictví
B65: Nedaří se nám realizovat žádný z uvedených aspektů
A67: Celkem
A68: vyberte kategorii ze seznamu
F83: výběr více odpovědí | J83: výběr jedné odpovědi | N83: všichni respondenti
S86: =A1&" | "&A67&" | N="&INDEX($5:$5,1,$T$86) -> Které aspekty související s komplexním rozvojem dítěte/žáka/studenta se podle Vás daří Vaší škole úspěšně realizovat? | Celkem | N=4324 | T86: =MATCH($A$67,$4:$4,0) -> 3 | U86: =INDEX($27:$45,W86,MATCH($A$67,$4:$4,0)) -> 0.7960222017 | V86: =INDEX($27:$45,W86,3) -> 0.7960222017 | W86: 1
U87: =INDEX($27:$45,W87,MATCH($A$67,$4:$4,0)) -> 0.7944033302 | V87: =INDEX($27:$45,W87,3) -> 0.7944033302 | W87: 2
U88: =INDEX($27:$45,W88,MATCH($A$67,$4:$4,0)) -> 0.7479185939 | V88: =INDEX($27:$45,W88,3) -> 0.7479185939 | W88: 3
U89: =INDEX($27:$45,W89,MATCH($A$67,$4:$4,0)) -> 0.7125346901 | V89: =INDEX($27:$45,W89,3) -> 0.7125346901 | W89: 4
U90: =INDEX($27:$45,W90,MATCH($A$67,$4:$4,0)) -> 0.7095282146 | V90: =INDEX($27:$45,W90,3) -> 0.7095282146 | W90: 5
U91: =INDEX($27:$45,W91,MATCH($A$67,$4:$4,0)) -> 0.6981961147 | V91: =INDEX($27:$45,W91,3) -> 0.6981961147 | W91: 6
U92: =INDEX($27:$45,W92,MATCH($A$67,$4:$4,0)) -> 0.6114708603 | V92: =INDEX($27:$45,W92,3) -> 0.6114708603 | W92: 7
U93: =INDEX($27:$45,W93,MATCH($A$67,$4:$4,0)) -> 0.5413968548 | V93: =INDEX($27:$45,W93,3) -> 0.5413968548 | W93: 8
U94: =INDEX($27:$45,W94,MATCH($A$67,$4:$4,0)) -> 0.4768732655 | V94: =INDEX($27:$45,W94,3) -> 0.4768732655 | W94: 9
U95: =INDEX($27:$45,W95,MATCH($A$67,$4:$4,0)) -> 0.3124421832 | V95: =INDEX($27:$45,W95,3) -> 0.3124421832 | W95: 10
U96: =INDEX($27:$45,W96,MATCH($A$67,$4:$4,0)) -> 0.2217853839 | V96: =INDEX($27:$45,W96,3) -> 0.2217853839 | W96: 11
U97: =INDEX($27:$45,W97,MATCH($A$67,$4:$4,0)) -> 0.2153098982 | V97: =INDEX($27:$45,W97,3) -> 0.2153098982 | W97: 12
U98: =INDEX($27:$45,W98,MATCH($A$67,$4:$4,0)) -> 0.1905642923 | V98: =INDEX($27:$45,W98,3) -> 0.1905642923 | W98: 13
U99: =INDEX($27:$45,W99,MATCH($A$67,$4:$4,0)) -> 0.1100832562 | V99: =INDEX($27:$45,W99,3) -> 0.1100832562 | W99: 14
U100: =INDEX($27:$45,W100,MATCH($A$67,$4:$4,0)) -> 0.07007400555 | V100: =INDEX($27:$45,W100,3) -> 0.07007400555 | W100: 15
U101: =INDEX($27:$45,W101,MATCH($A$67,$4:$4,0)) -> 0.02266419981 | V101: =INDEX($27:$45,W101,3) -> 0.02266419981 | W101: 16
U102: =INDEX($27:$45,W102,MATCH($A$67,$4:$4,0)) -> 0.02150786309 | V102: =INDEX($27:$45,W102,3) -> 0.02150786309 | W102: 17
U103: =INDEX($27:$45,W103,MATCH($A$67,$4:$4,0)) -> 0.02150786309 | V103: =INDEX($27:$45,W103,3) -> 0.02150786309 | W103: 18
U104: =INDEX($27:$45,W104,MATCH($A$67,$4:$4,0)) -> 0.001156336725 | V104: =INDEX($27:$45,W104,3) -> 0.001156336725 | W104: 19

Sheet Q8
A1: Které aspekty související s komplexním rozvojem dítěte/žáka/studenta se podle Vás nedaří Vaší škole realizovat, a uvítali byste v tomto ohledu podporu?
A3: zpět na obsah | D3: Kraj
C4: Celkem | D4: Hlavní město Praha | E4: Jihočeský kraj | F4: Jihomoravský kraj | G4: Karlovarský kraj | H4: Kraj Vysočina | I4: Královéhradecký kraj | J4: Liberecký kraj | K4: Moravskoslezský kraj | L4: Olomoucký kraj | M4: Pardubický kraj | N4: Plzeňský kraj | O4: Středočeský kraj | P4: Ústecký kraj | Q4: Zlínský kraj
A5: Počet respondentů (N) | C5: 4324 | D5: 340 | E5: 272 | F5: 539 | G5: 100 | H5: 241 | I5: 261 | J5: 197 | K5: 397 | L5: 318 | M5: 259 | N5: 218 | O5: 629 | P5: 296 | Q5: 256
A7: Četnost odpovědí | B7: Rozvoj podnikavosti | C7: 1272 | D7: 106 | E7: 74 | F7: 160 | G7: 35 | H7: 77 | I7: 76 | J7: 54 | K7: 137 | L7: 97 | M7: 60 | N7: 56 | O7: 180 | P7: 92 | Q7: 68
B8: Růstové myšlení, výchova lídrů (osvojení principů) | C8: 1259 | D8: 94 | E8: 78 | F8: 157 | G8: 28 | H8: 64 | I8: 85 | J8: 55 | K8: 126 | L8: 107 | M8: 77 | N8: 59 | O8: 163 | P8: 91 | Q8: 75
B9: Rozvoj digitálních kompetencí | C9: 1106 | D9: 90 | E9: 73 | F9: 149 | G9: 20 | H9: 73 | I9: 49 | J9: 48 | K9: 93 | L9: 80 | M9: 68 | N9: 59 | O9: 160 | P9: 68 | Q9: 76
B10: Kritické myšlení a vnímání souvislostí | C10: 985 | D10: 63 | E10: 60 | F10: 120 | G10: 21 | H10: 64 | I10: 65 | J10: 35 | K10: 109 | L10: 78 | M10: 70 | N10: 38 | O10: 132 | P10: 75 | Q10: 55
B11: Výchova k dobrovolnictví | C11: 971 | D11: 78 | E11: 58 | F11: 117 | G11: 18 | H11: 56 | I11: 51 | J11: 49 | K11: 98 | L11: 74 | M11: 55 | N11: 49 | O11: 145 | P11: 68 | Q11: 54
B12: Formování občanských postojů (spojeno např. s výchovou demokratického občana) | C12: 590 | D12: 52 | E12: 41 | F12: 65 | G12: 12 | H12: 40 | I12: 29 | J12: 28 | K12: 49 | L12: 48 | M12: 38 | N12: 32 | O12: 84 | P12: 35 | Q12: 36
B13: Prevence (primární prevence, pozitivní trávení volného času, kyberbezpečnost, práce s dezinformacemi atp.) | C13: 587 | D13: 45 | E13: 46 | F13: 69 | G13: 12 | H13: 24 | I13: 27 | J13: 38 | K13: 47 | L13: 43 | M13: 35 | N13: 36 | O13: 86 | P13: 40 | Q13: 39
B14: Vzdělávání a výchova k udržitelnosti | C14: 579 | D14: 51 | E14: 32 | F14: 70 | G14: 11 | H14: 40 | I14: 31 | J14: 26 | K14: 67 | L14: 50 | M14: 30 | N14: 21 | O14: 73 | P14: 45 | Q14: 32
B15: Multikulturní rozvoj a rozvoj interkulturních kompetencí | C15: 565 | D15: 20 | E15: 32 | F15: 85 | G15: 10 | H15: 32 | I15: 24 | J15: 30 | K15: 53 | L15: 48 | M15: 36 | N15: 27 | O15: 86 | P15: 48 | Q15: 33
B16: Rozvoj potenciálu každého dítěte (individuální přístup ke vzdělávání, rozvoji a výchově dítěte) | C16: 387 | D16: 35 | E16: 20 | F16: 50 | G16: 5 | H16: 22 | I16: 24 | J16: 15 | K16: 34 | L16: 20 | M16: 26 | N16: 18 | O16: 59 | P16: 38 | Q16: 21
B17: Podpora výuky v přírodě | C17: 366 | D17: 34 | E17: 22 | F17: 58 | G17: 6 | H17: 19 | I17: 21 | J17: 16 | K17: 28 | L17: 25 | M17: 25 | N17: 11 | O17: 54 | P17: 24 | Q17: 23
B18: Rozvoj schopnosti učit se | C18: 316 | D18: 23 | E18: 16 | F18: 44 | G18: 8 | H18: 23 | I18: 18 | J18: 9 | K18: 23 | L18: 11 | M18: 22 | N18: 21 | O18: 42 | P18: 32 | Q18: 24
B19: Well-being (zajištění tělesné a duševní pohody dětí) | C19: 279 | D19: 21 | E19: 10 | F19: 50 | G19: 3 | H19: 18 | I19: 13 | J19: 11 | K19: 35 | L19: 21 | M19: 14 | N19: 10 | O19: 40 | P19: 20 | Q19: 13
B20: Mezilidské vztahy, podpora vzájemné komunikace a respektování vzájemných odlišností (sociální výchova) | C20: 261 | D20: 17 | E20: 23 | F20: 42 | G20: 4 | H20: 14 | I20: 16 | J20: 13 | K20: 28 | L20: 10 | M20: 17 | N20: 16 | O20: 31 | P20: 19 | Q20: 11
B21: Zdravý životní styl (výchova ke zdraví, rozvoj pohybových aktivit) | C21: 204 | D21: 19 | E21: 10 | F21: 31 | G21: 4 | H21: 10 | I21: 11 | J21: 9 | K21: 21 | L21: 10 | M21: 7 | N21: 13 | O21: 25 | P21: 22 | Q21: 12
B22: Rozvoj osobnosti dítěte (osobnostní výchova) | C22: 168 | D22: 11 | E22: 9 | F22: 24 | G22: 4 | H22: 6 | I22: 9 | J22: 9 | K22: 11 | L22: 10 | M22: 12 | N22: 8 | O22: 30 | P22: 16 | Q22: 9
B23: Rozvoj kreativity a tvořivosti | C23: 161 | D23: 11 | E23: 11 | F23: 25 | G23: 2 | H23: 7 | I23: 9 | J23: 7 | K23: 14 | L23: 11 | M23: 9 | N23: 10 | O23: 19 | P23: 15 | Q23: 10
B24: Pozitivní vztah ke škole | C24: 125 | D24: 7 | E24: 6 | F24: 17 | G24: 1 | H24: 8 | I24: 8 | J24: 5 | K24: 7 | L24: 4 | M24: 9 | N24: 9 | O24: 22 | P24: 13 | Q24: 8
B25: V žádné z uvedených oblastí | C25: 842 | D25: 83 | E25: 51 | F25: 94 | G25: 28 | H25: 35 | I25: 57 | J25: 40 | K25: 74 | L25: 61 | M25: 46 | N25: 49 | O25: 119 | P25: 55 | Q25: 50
A27: Relativní četnost odpovědí (%) | B27: Rozvoj podnikavosti | C27: 0.2941720629 | D27: 0.3117647059 | E27: 0.2720588235 | F27: 0.2968460111 | G27: 0.35 | H27: 0.3195020747 | I27: 0.2911877395 | J27: 0.2741116751 | K27: 0.3450881612 | L27: 0.3050314465 | M27: 0.2316602317 | N27: 0.2568807339 | O27: 0.2861685215 | P27: 0.3108108108 | Q27: 0.265625
B28: Růstové myšlení, výchova lídrů (osvojení principů) | C28: 0.2911655874 | D28: 0.2764705882 | E28: 0.2867647059 | F28: 0.2912801484 | G28: 0.28 | H28: 0.265560166 | I28: 0.3256704981 | J28: 0.2791878173 | K28: 0.3173803526 | L28: 0.3364779874 | M28: 0.2972972973 | N28: 0.2706422018 | O28: 0.2591414944 | P28: 0.3074324324 | Q28: 0.29296875
B29: Rozvoj digitálních kompetencí | C29: 0.2557816836 | D29: 0.2647058824 | E29: 0.2683823529 | F29: 0.2764378479 | G29: 0.2 | H29: 0.3029045643 | I29: 0.1877394636 | J29: 0.2436548223 | K29: 0.234256927 | L29: 0.251572327 | M29: 0.2625482625 | N29: 0.2706422018 | O29: 0.2543720191 | P29: 0.2297297297 | Q29: 0.296875
B30: Kritické myšlení a vnímání souvislostí | C30: 0.2277983349 | D30: 0.1852941176 | E30: 0.2205882353 | F30: 0.2226345083 | G30: 0.21 | H30: 0.265560166 | I30: 0.2490421456 | J30: 0.1776649746 | K30: 0.274559194 | L30: 0.2452830189 | M30: 0.2702702703 | N30: 0.1743119266 | O30: 0.2098569157 | P30: 0.2533783784 | Q30: 0.21484375
B31: Výchova k dobrovolnictví | C31: 0.224560592 | D31: 0.2294117647 | E31: 0.2132352941 | F31: 0.2170686456 | G31: 0.18 | H31: 0.2323651452 | I31: 0.1954022989 | J31: 0.2487309645 | K31: 0.2468513854 | L31: 0.2327044025 | M31: 0.2123552124 | N31: 0.2247706422 | O31: 0.2305246423 | P31: 0.2297297297 | Q31: 0.2109375
B32: Formování občanských postojů (spojeno např. s výchovou demokratického občana) | C32: 0.1364477336 | D32: 0.1529411765 | E32: 0.1507352941 | F32: 0.120593692 | G32: 0.12 | H32: 0.1659751037 | I32: 0.1111111111 | J32: 0.1421319797 | K32: 0.1234256927 | L32: 0.1509433962 | M32: 0.1467181467 | N32: 0.1467889908 | O32: 0.13354531 | P32: 0.1182432432 | Q32: 0.140625
B33: Prevence (primární prevence, pozitivní trávení volného času, kyberbezpečnost, práce s dezinformacemi atp.) | C33: 0.1357539315 | D33: 0.1323529412 | E33: 0.1691176471 | F33: 0.1280148423 | G33: 0.12 | H33: 0.09958506224 | I33: 0.1034482759 | J33: 0.192893401 | K33: 0.1183879093 | L33: 0.1352201258 | M33: 0.1351351351 | N33: 0.1651376147 | O33: 0.1367249603 | P33: 0.1351351351 | Q33: 0.15234375
B34: Vzdělávání a výchova k udržitelnosti | C34: 0.1339037928 | D34: 0.15 | E34: 0.1176470588 | F34: 0.1298701299 | G34: 0.11 | H34: 0.1659751037 | I34: 0.1187739464 | J34: 0.1319796954 | K34: 0.1687657431 | L34: 0.1572327044 | M34: 0.1158301158 | N34: 0.09633027523 | O34: 0.1160572337 | P34: 0.152027027 | Q34: 0.125
B35: Multikulturní rozvoj a rozvoj interkulturních kompetencí | C35: 0.13066605 | D35: 0.05882352941 | E35: 0.1176470588 | F35: 0.1576994434 | G35: 0.1 | H35: 0.132780083 | I35: 0.09195402299 | J35: 0.152284264 | K35: 0.1335012594 | L35: 0.1509433962 | M35: 0.138996139 | N35: 0.123853211 | O35: 0.1367249603 | P35: 0.1621621622 | Q35: 0.12890625
B36: Rozvoj potenciálu každého dítěte (individuální přístup ke vzdělávání, rozvoji a výchově dítěte) | C36: 0.08950046253 | D36: 0.1029411765 | E36: 0.07352941176 | F36: 0.09276437848 | G36: 0.05 | H36: 0.09128630705 | I36: 0.09195402299 | J36: 0.07614213198 | K36: 0.08564231738 | L36: 0.06289308176 | M36: 0.1003861004 | N36: 0.08256880734 | O36: 0.09379968203 | P36: 0.1283783784 | Q36: 0.08203125
B37: Podpora výuky v přírodě | C37: 0.08464384829 | D37: 0.1 | E37: 0.08088235294 | F37: 0.107606679 | G37: 0.06 | H37: 0.07883817427 | I37: 0.08045977011 | J37: 0.08121827411 | K37: 0.07052896725 | L37: 0.0786163522 | M37: 0.09652509653 | N37: 0.0504587156 | O37: 0.08585055644 | P37: 0.08108108108 | Q37: 0.08984375
B38: Rozvoj schopnosti učit se | C38: 0.07308048104 | D38: 0.06764705882 | E38: 0.05882352941 | F38: 0.08163265306 | G38: 0.08 | H38: 0.09543568465 | I38: 0.06896551724 | J38: 0.04568527919 | K38: 0.05793450882 | L38: 0.03459119497 | M38: 0.08494208494 | N38: 0.09633027523 | O38: 0.06677265501 | P38: 0.1081081081 | Q38: 0.09375
B39: Well-being (zajištění tělesné a duševní pohody dětí) | C39: 0.06452358927 | D39: 0.06176470588 | E39: 0.03676470588 | F39: 0.09276437848 | G39: 0.03 | H39: 0.07468879668 | I39: 0.04980842912 | J39: 0.05583756345 | K39: 0.08816120907 | L39: 0.06603773585 | M39: 0.05405405405 | N39: 0.04587155963 | O39: 0.06359300477 | P39: 0.06756756757 | Q39: 0.05078125
B40: Mezilidské vztahy, podpora vzájemné komunikace a respektování vzájemných odlišností (sociální výchova) | C40: 0.06036077706 | D40: 0.05 | E40: 0.08455882353 | F40: 0.07792207792 | G40: 0.04 | H40: 0.05809128631 | I40: 0.06130268199 | J40: 0.06598984772 | K40: 0.07052896725 | L40: 0.03144654088 | M40: 0.06563706564 | N40: 0.07339449541 | O40: 0.0492845787 | P40: 0.06418918919 | Q40: 0.04296875
B41: Zdravý životní styl (výchova ke zdraví, rozvoj pohybových aktivit) | C41: 0.04717853839 | D41: 0.05588235294 | E41: 0.03676470588 | F41: 0.05751391466 | G41: 0.04 | H41: 0.04149377593 | I41: 0.04214559387 | J41: 0.04568527919 | K41: 0.05289672544 | L41: 0.03144654088 | M41: 0.02702702703 | N41: 0.05963302752 | O41: 0.03974562798 | P41: 0.07432432432 | Q41: 0.046875
B42: Rozvoj osobnosti dítěte (osobnostní výchova) | C42: 0.03885291397 | D42: 0.03235294118 | E42: 0.03308823529 | F42: 0.04452690167 | G42: 0.04 | H42: 0.02489626556 | I42: 0.03448275862 | J42: 0.04568527919 | K42: 0.02770780856 | L42: 0.03144654088 | M42: 0.04633204633 | N42: 0.03669724771 | O42: 0.04769475358 | P42: 0.05405405405 | Q42: 0.03515625
B43: Rozvoj kreativity a tvořivosti | C43: 0.03723404255 | D43: 0.03235294118 | E43: 0.04044117647 | F43: 0.04638218924 | G43: 0.02 | H43: 0.02904564315 | I43: 0.03448275862 | J43: 0.03553299492 | K43: 0.03526448363 | L43: 0.03459119497 | M43: 0.03474903475 | N43: 0.04587155963 | O43: 0.03020667727 | P43: 0.05067567568 | Q43: 0.0390625
B44: Pozitivní vztah ke škole | C44: 0.02890841813 | D44: 0.02058823529 | E44: 0.02205882353 | F44: 0.03153988868 | G44: 0.01 | H44: 0.03319502075 | I44: 0.030651341 | J44: 0.02538071066 | K44: 0.01763224181 | L44: 0.01257861635 | M44: 0.03474903475 | N44: 0.04128440367 | O44: 0.03497615262 | P44: 0.04391891892 | Q44: 0.03125
B45: V žádné z uvedených oblastí | C45: 0.1947271045 | D45: 0.2441176471 | E45: 0.1875 | F45: 0.1743970315 | G45: 0.28 | H45: 0.1452282158 | I45: 0.2183908046 | J45: 0.2030456853 | K45: 0.1863979849 | L45: 0.1918238994 | M45: 0.1776061776 | N45: 0.2247706422 | O45: 0.1891891892 | P45: 0.1858108108 | Q45: 0.1953125
A47: Statistická významnost | B47: Rozvoj podnikavosti | K47: + | M47: -
B48: Růstové myšlení, výchova lídrů (osvojení principů)
B49: Rozvoj digitálních kompetencí | I49: --
B50: Kritické myšlení a vnímání souvislostí | K50: +
B51: Výchova k dobrovolnictví
B52: Formování občanských postojů (spojeno např. s výchovou demokratického občana)
B53: Prevence (primární prevence, pozitivní trávení volného času, kyberbezpečnost, práce s dezinformacemi atp.) | J53: +
B54: Vzdělávání a výchova k udržitelnosti | K54: +
B55: Multikulturní rozvoj a rozvoj interkulturních kompetencí | D55: --- | F55: +
B56: Rozvoj potenciálu každého dítěte (individuální přístup ke vzdělávání, rozvoji a výchově dítěte) | P56: +
B57: Podpora výuky v přírodě | F57: +
B58: Rozvoj schopnosti učit se | L58: -- | P58: +
B59: Well-being (zajištění tělesné a duševní pohody dětí) | F59: ++ | K59: +
B60: Mezilidské vztahy, podpora vzájemné komunikace a respektování vzájemných odlišností (sociální výchova) | L60: -
B61: Zdravý životní styl (výchova ke zdraví, rozvoj pohybových aktivit) | P61: +
B62: Rozvoj osobnosti dítěte (osobnostní výchova)
B63: Rozvoj kreativity a tvořivosti
B64: Pozitivní vztah ke škole
B65: V žádné z uvedených oblastí | D65: + | G65: + | H65: -
A67: Celkem
A68: vyberte kategorii ze seznamu
F83: výběr více odpovědí | J83: výběr jedné odpovědi | N83: všichni respondenti
S86: =A1&" | "&A67&" | N="&INDEX($5:$5,1,$T$86) -> Které aspekty související s komplexním rozvojem dítěte/žáka/studenta se podle Vás nedaří Vaší škole realizovat, a uvítali byste v tomto ohledu podporu? | Celkem | N=4324 | T86: =MATCH($A$67,$4:$4,0) -> 3 | U86: =INDEX($27:$45,W86,MATCH($A$67,$4:$4,0)) -> 0.2941720629 | V86: =INDEX($27:$45,W86,3) -> 0.2941720629 | W86: 1
U87: =INDEX($27:$45,W87,MATCH($A$67,$4:$4,0)) -> 0.2911655874 | V87: =INDEX($27:$45,W87,3) -> 0.2911655874 | W87: 2
U88: =INDEX($27:$45,W88,MATCH($A$67,$4:$4,0)) -> 0.2557816836 | V88: =INDEX($27:$45,W88,3) -> 0.2557816836 | W88: 3
U89: =INDEX($27:$45,W89,MATCH($A$67,$4:$4,0)) -> 0.2277983349 | V89: =INDEX($27:$45,W89,3) -> 0.2277983349 | W89: 4
U90: =INDEX($27:$45,W90,MATCH($A$67,$4:$4,0)) -> 0.224560592 | V90: =INDEX($27:$45,W90,3) -> 0.224560592 | W90: 5
U91: =INDEX($27:$45,W91,MATCH($A$67,$4:$4,0)) -> 0.1364477336 | V91: =INDEX($27:$45,W91,3) -> 0.1364477336 | W91: 6
U92: =INDEX($27:$45,W92,MATCH($A$67,$4:$4,0)) -> 0.1357539315 | V92: =INDEX($27:$45,W92,3) -> 0.1357539315 | W92: 7
U93: =INDEX($27:$45,W93,MATCH($A$67,$4:$4,0)) -> 0.1339037928 | V93: =INDEX($27:$45,W93,3) -> 0.1339037928 | W93: 8
U94: =INDEX($27:$45,W94,MATCH($A$67,$4:$4,0)) -> 0.13066605 | V94: =INDEX($27:$45,W94,3) -> 0.13066605 | W94: 9
U95: =INDEX($27:$45,W95,MATCH($A$67,$4:$4,0)) -> 0.08950046253 | V95: =INDEX($27:$45,W95,3) -> 0.08950046253 | W95: 10
U96: =INDEX($27:$45,W96,MATCH($A$67,$4:$4,0)) -> 0.08464384829 | V96: =INDEX($27:$45,W96,3) -> 0.08464384829 | W96: 11
U97: =INDEX($27:$45,W97,MATCH($A$67,$4:$4,0)) -> 0.07308048104 | V97: =INDEX($27:$45,W97,3) -> 0.07308048104 | W97: 12
U98: =INDEX($27:$45,W98,MATCH($A$67,$4:$4,0)) -> 0.06452358927 | V98: =INDEX($27:$45,W98,3) -> 0.06452358927 | W98: 13
U99: =INDEX($27:$45,W99,MATCH($A$67,$4:$4,0)) -> 0.06036077706 | V99: =INDEX($27:$45,W99,3) -> 0.06036077706 | W99: 14
U100: =INDEX($27:$45,W100,MATCH($A$67,$4:$4,0)) -> 0.04717853839 | V100: =INDEX($27:$45,W100,3) -> 0.04717853839 | W100: 15
U101: =INDEX($27:$45,W101,MATCH($A$67,$4:$4,0)) -> 0.03885291397 | V101: =INDEX($27:$45,W101,3) -> 0.03885291397 | W101: 16
U102: =INDEX($27:$45,W102,MATCH($A$67,$4:$4,0)) -> 0.03723404255 | V102: =INDEX($27:$45,W102,3) -> 0.03723404255 | W102: 17
U103: =INDEX($27:$45,W103,MATCH($A$67,$4:$4,0)) -> 0.02890841813 | V103: =INDEX($27:$45,W103,3) -> 0.02890841813 | W103: 18
U104: =INDEX($27:$45,W104,MATCH($A$67,$4:$4,0)) -> 0.1947271045 | V104: =INDEX($27:$45,W104,3) -> 0.1947271045 | W104: 19

Sheet Q9
A1: Které z následujících položek nejvíce limitují komplexní rozvoj dětí/žáků/studentů ve Vaší škole?
A3: zpět na obsah | D3: Kraj
C4: Celkem | D4: Hlavní město Praha | E4: Jihočeský kraj | F4: Jihomoravský kraj | G4: Karlovarský kraj | H4: Kraj Vysočina | I4: Královéhradecký kraj | J4: Liberecký kraj | K4: Moravskoslezský kraj | L4: Olomoucký kraj | M4: Pardubický kraj | N4: Plzeňský kraj | O4: Středočeský kraj | P4: Ústecký kraj | Q4: Zlínský kraj
A5: Počet respondentů (N) | C5: 4324 | D5: 340 | E5: 272 | F5: 539 | G5: 100 | H5: 241 | I5: 261 | J5: 197 | K5: 397 | L5: 318 | M5: 259 | N5: 218 | O5: 629 | P5: 296 | Q5: 256
A7: Četnost odpovědí | B7: Nedostatečná kapacita školních psychologů, speciálních pedagogů, sociálních pedagogů a dalších pozic | C7: 2189 | D7: 178 | E7: 145 | F7: 253 | G7: 60 | H7: 117 | I7: 130 | J7: 85 | K7: 216 | L7: 121 | M7: 148 | N7: 118 | O7: 334 | P7: 166 | Q7: 117
B8: Vliv rodiny a dalších osob v blízkém okolí | C8: 2136 | D8: 141 | E8: 151 | F8: 257 | G8: 56 | H8: 102 | I8: 136 | J8: 101 | K8: 182 | L8: 168 | M8: 126 | N8: 121 | O8: 304 | P8: 175 | Q8: 116
B9: Nedostatečná časová kapacita pedagogických pracovníků věnovat se individuálnímu a zároveň komplexnímu rozvoji každého dítěte/žáka/studenta | C9: 2007 | D9: 176 | E9: 116 | F9: 260 | G9: 40 | H9: 115 | I9: 136 | J9: 89 | K9: 195 | L9: 139 | M9: 118 | N9: 84 | O9: 297 | P9: 121 | Q9: 121
B10: Vliv sociálních sítí a médií (např. youtubeři) | C10: 1103 | D10: 64 | E10: 72 | F10: 145 | G10: 27 | H10: 67 | I10: 67 | J10: 62 | K10: 91 | L10: 84 | M10: 63 | N10: 60 | O10: 135 | P10: 89 | Q10: 77
B11: Vysoká absence dětí/žáků/studentů | C11: 798 | D11: 44 | E11: 48 | F11: 106 | G11: 28 | H11: 40 | I11: 44 | J11: 42 | K11: 69 | L11: 72 | M11: 45 | N11: 43 | O11: 113 | P11: 66 | Q11: 38
B12: Nejasná definice toho, co komplexní rozvoj dítěte/žáka/studenta vlastně zahrnuje | C12: 540 | D12: 42 | E12: 29 | F12: 68 | G12: 15 | H12: 38 | I12: 34 | J12: 32 | K12: 36 | L12: 46 | M12: 26 | N12: 23 | O12: 81 | P12: 31 | Q12: 39
B13: Nízká motivace samotných dětí/žáků/studentů | C13: 524 | D13: 29 | E13: 34 | F13: 72 | G13: 13 | H13: 32 | I13: 38 | J13: 26 | K13: 62 | L13: 45 | M13: 22 | N13: 23 | O13: 58 | P13: 49 | Q13: 21
B14: Nedostatečné materiální zabezpečení žáků/dětí/studentů (např. chybějící psací potřeby a další pomůcky, nedostatečné prostředky na úhradu školních výletů, obědů atp.) | C14: 510 | D14: 29 | E14: 30 | F14: 67 | G14: 6 | H14: 40 | I14: 27 | J14: 31 | K14: 60 | L14: 41 | M14: 33 | N14: 15 | O14: 63 | P14: 37 | Q14: 30
B15: Neuspokojivá spolupráce se školskými poradenskými zařízeními (pedagogickopsychologickými poradnami, speciálně pedagogickými centry) | C15: 498 | D15: 67 | E15: 21 | F15: 62 | G15: 8 | H15: 25 | I15: 17 | J15: 12 | K15: 33 | L15: 32 | M15: 32 | N15: 25 | O15: 112 | P15: 32 | Q15: 20
B16: Nedostatečná metodická podpora pedagogických pracovníků | C16: 378 | D16: 33 | E16: 31 | F16: 57 | G16: 7 | H16: 22 | I16: 20 | J16: 12 | K16: 44 | L16: 29 | M16: 26 | N16: 10 | O16: 49 | P16: 15 | Q16: 23
B17: Nedostatečná podpora ze strany zřizovatele | C17: 137 | D17: 9 | E17: 13 | F17: 20 | G17: 1 | H17: 7 | I17: 5 | J17: 5 | K17: 12 | L17: 11 | M17: 7 | N17: 7 | O17: 24 | P17: 7 | Q17: 8
B18: Neochota pedagogických pracovníků přistupovat k dětem/žákům/studentům individuálně a vnímat je jako osobnosti | C18: 101 | D18: 10 | E18: 7 | F18: 14 | G18: 2 | H18: 3 | I18: 5 | J18: 1 | K18: 6 | L18: 7 | M18: 11 | N18: 2 | O18: 14 | P18: 13 | Q18: 6
A20: Relativní četnost odpovědí (%) | B20: Nedostatečná kapacita školních psychologů, speciálních pedagogů, sociálních pedagogů a dalších pozic | C20: 0.5062442183 | D20: 0.5235294118 | E20: 0.5330882353 | F20: 0.4693877551 | G20: 0.6 | H20: 0.4854771784 | I20: 0.4980842912 | J20: 0.4314720812 | K20: 0.5440806045 | L20: 0.3805031447 | M20: 0.5714285714 | N20: 0.5412844037 | O20: 0.5310015898 | P20: 0.5608108108 | Q20: 0.45703125
B21: Vliv rodiny a dalších osob v blízkém okolí | C21: 0.493987049 | D21: 0.4147058824 | E21: 0.5551470588 | F21: 0.4768089054 | G21: 0.56 | H21: 0.4232365145 | I21: 0.5210727969 | J21: 0.5126903553 | K21: 0.4584382872 | L21: 0.5283018868 | M21: 0.4864864865 | N21: 0.5550458716 | O21: 0.4833068362 | P21: 0.5912162162 | Q21: 0.453125
B22: Nedostatečná časová kapacita pedagogických pracovníků věnovat se individuálnímu a zároveň komplexnímu rozvoji každého dítěte/žáka/studenta | C22: 0.4641535615 | D22: 0.5176470588 | E22: 0.4264705882 | F22: 0.4823747681 | G22: 0.4 | H22: 0.4771784232 | I22: 0.5210727969 | J22: 0.4517766497 | K22: 0.4911838791 | L22: 0.4371069182 | M22: 0.4555984556 | N22: 0.3853211009 | O22: 0.4721780604 | P22: 0.4087837838 | Q22: 0.47265625
B23: Vliv sociálních sítí a médií (např. youtubeři) | C23: 0.2550878816 | D23: 0.1882352941 | E23: 0.2647058824 | F23: 0.2690166976 | G23: 0.27 | H23: 0.2780082988 | I23: 0.2567049808 | J23: 0.3147208122 | K23: 0.2292191436 | L23: 0.2641509434 | M23: 0.2432432432 | N23: 0.2752293578 | O23: 0.2146263911 | P23: 0.3006756757 | Q23: 0.30078125
B24: Vysoká absence dětí/žáků/studentů | C24: 0.1845513414 | D24: 0.1294117647 | E24: 0.1764705882 | F24: 0.1966604824 | G24: 0.28 | H24: 0.1659751037 | I24: 0.1685823755 | J24: 0.2131979695 | K24: 0.1738035264 | L24: 0.2264150943 | M24: 0.1737451737 | N24: 0.1972477064 | O24: 0.1796502385 | P24: 0.222972973 | Q24: 0.1484375
B25: Nejasná definice toho, co komplexní rozvoj dítěte/žáka/studenta vlastně zahrnuje | C25: 0.1248843663 | D25: 0.1235294118 | E25: 0.1066176471 | F25: 0.1261595547 | G25: 0.15 | H25: 0.1576763485 | I25: 0.1302681992 | J25: 0.1624365482 | K25: 0.09068010076 | L25: 0.1446540881 | M25: 0.1003861004 | N25: 0.1055045872 | O25: 0.1287758347 | P25: 0.1047297297 | Q25: 0.15234375
B26: Nízká motivace samotných dětí/žáků/studentů | C26: 0.1211840888 | D26: 0.08529411765 | E26: 0.125 | F26: 0.133580705 | G26: 0.13 | H26: 0.132780083 | I26: 0.1455938697 | J26: 0.1319796954 | K26: 0.1561712846 | L26: 0.141509434 | M26: 0.08494208494 | N26: 0.1055045872 | O26: 0.09220985692 | P26: 0.1655405405 | Q26: 0.08203125
B27: Nedostatečné materiální zabezpečení žáků/dětí/studentů (např. chybějící psací potřeby a další pomůcky, nedostatečné prostředky na úhradu školních výletů, obědů atp.) | C27: 0.117946346 | D27: 0.08529411765 | E27: 0.1102941176 | F27: 0.1243042672 | G27: 0.06 | H27: 0.1659751037 | I27: 0.1034482759 | J27: 0.1573604061 | K27: 0.1511335013 | L27: 0.1289308176 | M27: 0.1274131274 | N27: 0.06880733945 | O27: 0.1001589825 | P27: 0.125 | Q27: 0.1171875
B28: Neuspokojivá spolupráce se školskými poradenskými zařízeními (pedagogickopsychologickými poradnami, speciálně pedagogickými centry) | C28: 0.1151711378 | D28: 0.1970588235 | E28: 0.07720588235 | F28: 0.1150278293 | G28: 0.08 | H28: 0.1037344398 | I28: 0.06513409962 | J28: 0.06091370558 | K28: 0.08312342569 | L28: 0.1006289308 | M28: 0.1235521236 | N28: 0.1146788991 | O28: 0.1780604134 | P28: 0.1081081081 | Q28: 0.078125
B29: Nedostatečná metodická podpora pedagogických pracovníků | C29: 0.08741905643 | D29: 0.09705882353 | E29: 0.1139705882 | F29: 0.1057513915 | G29: 0.07 | H29: 0.09128630705 | I29: 0.07662835249 | J29: 0.06091370558 | K29: 0.1108312343 | L29: 0.09119496855 | M29: 0.1003861004 | N29: 0.04587155963 | O29: 0.07790143084 | P29: 0.05067567568 | Q29: 0.08984375
B30: Nedostatečná podpora ze strany zřizovatele | C30: 0.03168362627 | D30: 0.02647058824 | E30: 0.04779411765 | F30: 0.03710575139 | G30: 0.01 | H30: 0.02904564315 | I30: 0.01915708812 | J30: 0.02538071066 | K30: 0.03022670025 | L30: 0.03459119497 | M30: 0.02702702703 | N30: 0.03211009174 | O30: 0.03815580286 | P30: 0.02364864865 | Q30: 0.03125
B31: Neochota pedagogických pracovníků přistupovat k dětem/žákům/studentům individuálně a vnímat je jako osobnosti | C31: 0.02335800185 | D31: 0.02941176471 | E31: 0.02573529412 | F31: 0.02597402597 | G31: 0.02 | H31: 0.01244813278 | I31: 0.01915708812 | J31: 0.005076142132 | K31: 0.01511335013 | L31: 0.02201257862 | M31: 0.04247104247 | N31: 0.009174311927 | O31: 0.02225755167 | P31: 0.04391891892 | Q31: 0.0234375
A33: Statistická významnost | B33: Nedostatečná kapacita školních psychologů, speciálních pedagogů, sociálních pedagogů a dalších pozic | J33: - | L33: --- | M33: +
B34: Vliv rodiny a dalších osob v blízkém okolí | D34: -- | E34: + | H34: - | P34: +++
B35: Nedostatečná časová kapacita pedagogických pracovníků věnovat se individuálnímu a zároveň komplexnímu rozvoji každého dítěte/žáka/studenta | D35: + | N35: - | P35: -
B36: Vliv sociálních sítí a médií (např. youtubeři) | D36: -- | J36: + | O36: -
B37: Vysoká absence dětí/žáků/studentů | D37: -- | G37: + | L37: +
B38: Nejasná definice toho, co komplexní rozvoj dítěte/žáka/studenta vlastně zahrnuje | K38: -
B39: Nízká motivace samotných dětí/žáků/studentů | D39: - | K39: + | O39: - | P39: + | Q39: -
B40: Nedostatečné materiální zabezpečení žáků/dětí/studentů (např. chybějící psací potřeby a další pomůcky, nedostatečné prostředky na úhradu školních výletů, obědů atp.) | H40: + | K40: + | N40: -
B41: Neuspokojivá spolupráce se školskými poradenskými zařízeními (pedagogickopsychologickými poradnami, speciálně pedagogickými centry) | D41: +++ | E41: - | I41: -- | J41: - | K41: - | O41: +++
B42: Nedostatečná metodická podpora pedagogických pracovníků | N42: - | P42: -
B43: Nedostatečná podpora ze strany zřizovatele
B44: Neochota pedagogických pracovníků přistupovat k dětem/žákům/studentům individuálně a vnímat je jako osobnosti | M44: + | P44: +
A46: Celkem
A47: vyberte kategorii ze seznamu
F62: výběr více odpovědí | J62: výběr jedné odpovědi | N62: všichni respondenti
S65: =A1&" | "&A46&" | N="&INDEX($5:$5,1,$T$65) -> Které z následujících položek nejvíce limitují komplexní rozvoj dětí/žáků/studentů ve Vaší škole? | Celkem | N=4324 | T65: =MATCH($A$46,$4:$4,0) -> 3 | U65: =INDEX($20:$31,W65,MATCH($A$46,$4:$4,0)) -> 0.5062442183 | V65: =INDEX($20:$31,W65,3) -> 0.5062442183 | W65: 1
U66: =INDEX($20:$31,W66,MATCH($A$46,$4:$4,0)) -> 0.493987049 | V66: =INDEX($20:$31,W66,3) -> 0.493987049 | W66: 2
U67: =INDEX($20:$31,W67,MATCH($A$46,$4:$4,0)) -> 0.4641535615 | V67: =INDEX($20:$31,W67,3) -> 0.4641535615 | W67: 3
U68: =INDEX($20:$31,W68,MATCH($A$46,$4:$4,0)) -> 0.2550878816 | V68: =INDEX($20:$31,W68,3) -> 0.2550878816 | W68: 4
U69: =INDEX($20:$31,W69,MATCH($A$46,$4:$4,0)) -> 0.1845513414 | V69: =INDEX($20:$31,W69,3) -> 0.1845513414 | W69: 5
U70: =INDEX($20:$31,W70,MATCH($A$46,$4:$4,0)) -> 0.1248843663 | V70: =INDEX($20:$31,W70,3) -> 0.1248843663 | W70: 6
U71: =INDEX($20:$31,W71,MATCH($A$46,$4:$4,0)) -> 0.1211840888 | V71: =INDEX($20:$31,W71,3) -> 0.1211840888 | W71: 7
U72: =INDEX($20:$31,W72,MATCH($A$46,$4:$4,0)) -> 0.117946346 | V72: =INDEX($20:$31,W72,3) -> 0.117946346 | W72: 8
U73: =INDEX($20:$31,W73,MATCH($A$46,$4:$4,0)) -> 0.1151711378 | V73: =INDEX($20:$31,W73,3) -> 0.1151711378 | W73: 9
U74: =INDEX($20:$31,W74,MATCH($A$46,$4:$4,0)) -> 0.08741905643 | V74: =INDEX($20:$31,W74,3) -> 0.08741905643 | W74: 10
U75: =INDEX($20:$31,W75,MATCH($A$46,$4:$4,0)) -> 0.03168362627 | V75: =INDEX($20:$31,W75,3) -> 0.03168362627 | W75: 11
U76: =INDEX($20:$31,W76,MATCH($A$46,$4:$4,0)) -> 0.02335800185 | V76: =INDEX($20:$31,W76,3) -> 0.02335800185 | W76: 12

Sheet Q10_1
A1: Vaše škola v posledních 12 měsících sociálně či jinak znevýhodněným dětem/žákům/studentům některou z vybraných položek? q10_1 Školní obědy
A3: zpět na obsah | D3: Kraj
C4: Celkem | D4: Hlavní město Praha | E4: Jihočeský kraj | F4: Jihomoravský kraj | G4: Karlovarský kraj | H4: Kraj Vysočina | I4: Královéhradecký kraj | J4: Liberecký kraj | K4: Moravskoslezský kraj | L4: Olomoucký kraj | M4: Pardubický kraj | N4: Plzeňský kraj | O4: Středočeský kraj | P4: Ústecký kraj | Q4: Zlínský kraj
A5: Počet respondentů (N) | C5: 4324 | D5: 340 | E5: 272 | F5: 539 | G5: 100 | H5: 241 | I5: 261 | J5: 197 | K5: 397 | L5: 318 | M5: 259 | N5: 218 | O5: 629 | P5: 296 | Q5: 256
A7: Četnost odpovědí | B7: Ano, pravidelně | C7: 632 | D7: 94 | E7: 39 | F7: 58 | G7: 22 | H7: 26 | I7: 43 | J7: 35 | K7: 73 | L7: 51 | M7: 39 | N7: 29 | O7: 62 | P7: 35 | Q7: 26
B8: Ano, ale pouze výjimečně | C8: 307 | D8: 78 | E8: 25 | F8: 25 | G8: 3 | H8: 15 | I8: 16 | J8: 9 | K8: 36 | L8: 21 | M8: 10 | N8: 8 | O8: 34 | P8: 15 | Q8: 12
B9: Ne | C9: 3385 | D9: 168 | E9: 208 | F9: 456 | G9: 75 | H9: 200 | I9: 202 | J9: 153 | K9: 288 | L9: 246 | M9: 210 | N9: 181 | O9: 533 | P9: 246 | Q9: 218
A11: Relativní četnost odpovědí (%) | B11: Ano, pravidelně | C11: 0.1461609621 | D11: 0.2764705882 | E11: 0.1433823529 | F11: 0.107606679 | G11: 0.22 | H11: 0.1078838174 | I11: 0.1647509579 | J11: 0.1776649746 | K11: 0.1838790932 | L11: 0.1603773585 | M11: 0.1505791506 | N11: 0.1330275229 | O11: 0.09856915739 | P11: 0.1182432432 | Q11: 0.1015625
B12: Ano, ale pouze výjimečně | C12: 0.07099907493 | D12: 0.2294117647 | E12: 0.09191176471 | F12: 0.04638218924 | G12: 0.03 | H12: 0.0622406639 | I12: 0.06130268199 | J12: 0.04568527919 | K12: 0.09068010076 | L12: 0.06603773585 | M12: 0.03861003861 | N12: 0.03669724771 | O12: 0.05405405405 | P12: 0.05067567568 | Q12: 0.046875
B13: Ne | C13: 0.782839963 | D13: 0.4941176471 | E13: 0.7647058824 | F13: 0.8460111317 | G13: 0.75 | H13: 0.8298755187 | I13: 0.7739463602 | J13: 0.7766497462 | K13: 0.725440806 | L13: 0.7735849057 | M13: 0.8108108108 | N13: 0.8302752294 | O13: 0.8473767886 | P13: 0.8310810811 | Q13: 0.8515625
A15: Statistická významnost | B15: Ano, pravidelně | D15: +++ | F15: -- | G15: + | K15: + | O15: --- | Q15: -
B16: Ano, ale pouze výjimečně | D16: +++ | F16: - | M16: - | N16: -
B17: Ne | D17: --- | F17: +++ | K17: -- | O17: +++ | P17: + | Q17: ++
A19: Celkem
A20: vyberte kategorii ze seznamu
F35: výběr více odpovědí | J35: výběr jedné odpovědi | N35: všichni respondenti
S38: =A1&" | "&A19&" | N="&INDEX($5:$5,1,$T$38) -> Vaše škola v posledních 12 měsících sociálně či jinak znevýhodněným dětem/žákům/studentům některou z vybraných položek? q10_1 Školní obědy | Celkem | N=4324 | T38: =MATCH($A$19,$4:$4,0) -> 3 | U38: =INDEX($11:$13,W38,MATCH($A$19,$4:$4,0)) -> 0.1461609621 | V38: =INDEX($11:$13,W38,3) -> 0.1461609621 | W38: 1
U39: =INDEX($11:$13,W39,MATCH($A$19,$4:$4,0)) -> 0.07099907493 | V39: =INDEX($11:$13,W39,3) -> 0.07099907493 | W39: 2
U40: =INDEX($11:$13,W40,MATCH($A$19,$4:$4,0)) -> 0.782839963 | V40: =INDEX($11:$13,W40,3) -> 0.782839963 | W40: 3

Sheet Q10_2
A1: Vaše škola v posledních 12 měsících sociálně či jinak znevýhodněným dětem/žákům/studentům některou z vybraných položek? q10_2 Stravování mimo obědy (svačiny, ovoce a zelenina, pitný režim mimo kohoutkovou vodu atp.)
A3: zpět na obsah | D3: Kraj
C4: Celkem | D4: Hlavní město Praha | E4: Jihočeský kraj | F4: Jihomoravský kraj | G4: Karlovarský kraj | H4: Kraj Vysočina | I4: Královéhradecký kraj | J4: Liberecký kraj | K4: Moravskoslezský kraj | L4: Olomoucký kraj | M4: Pardubický kraj | N4: Plzeňský kraj | O4: Středočeský kraj | P4: Ústecký kraj | Q4: Zlínský kraj
A5: Počet respondentů (N) | C5: 4324 | D5: 340 | E5: 272 | F5: 539 | G5: 100 | H5: 241 | I5: 261 | J5: 197 | K5: 397 | L5: 318 | M5: 259 | N5: 218 | O5: 629 | P5: 296 | Q5: 256
A7: Četnost odpovědí | B7: Ano, pravidelně | C7: 444 | D7: 55 | E7: 31 | F7: 41 | G7: 12 | H7: 14 | I7: 31 | J7: 28 | K7: 45 | L7: 39 | M7: 31 | N7: 22 | O7: 45 | P7: 29 | Q7: 21
B8: Ano, ale pouze výjimečně | C8: 311 | D8: 36 | E8: 23 | F8: 28 | G8: 3 | H8: 15 | I8: 21 | J8: 16 | K8: 31 | L8: 26 | M8: 16 | N8: 10 | O8: 45 | P8: 28 | Q8: 13
B9: Ne | C9: 3569 | D9: 249 | E9: 218 | F9: 470 | G9: 85 | H9: 212 | I9: 209 | J9: 153 | K9: 321 | L9: 253 | M9: 212 | N9: 186 | O9: 539 | P9: 239 | Q9: 222
A11: Relativní četnost odpovědí (%) | B11: Ano, pravidelně | C11: 0.1026827012 | D11: 0.1617647059 | E11: 0.1139705882 | F11: 0.07606679035 | G11: 0.12 | H11: 0.05809128631 | I11: 0.1187739464 | J11: 0.1421319797 | K11: 0.1133501259 | L11: 0.1226415094 | M11: 0.1196911197 | N11: 0.1009174312 | O11: 0.07154213037 | P11: 0.09797297297 | Q11: 0.08203125
B12: Ano, ale pouze výjimečně | C12: 0.07192414431 | D12: 0.1058823529 | E12: 0.08455882353 | F12: 0.05194805195 | G12: 0.03 | H12: 0.0622406639 | I12: 0.08045977011 | J12: 0.08121827411 | K12: 0.07808564232 | L12: 0.08176100629 | M12: 0.06177606178 | N12: 0.04587155963 | O12: 0.07154213037 | P12: 0.09459459459 | Q12: 0.05078125
B13: Ne | C13: 0.8253931545 | D13: 0.7323529412 | E13: 0.8014705882 | F13: 0.8719851577 | G13: 0.85 | H13: 0.8796680498 | I13: 0.8007662835 | J13: 0.7766497462 | K13: 0.8085642317 | L13: 0.7955974843 | M13: 0.8185328185 | N13: 0.8532110092 | O13: 0.8569157393 | P13: 0.8074324324 | Q13: 0.8671875
A15: Statistická významnost | B15: Ano, pravidelně | D15: +++ | F15: - | H15: - | O15: --
B16: Ano, ale pouze výjimečně | D16: +
B17: Ne | D17: --- | F17: ++ | H17: + | O17: +
A19: Celkem
A20: vyberte kategorii ze seznamu
F35: výběr více odpovědí | J35: výběr jedné odpovědi | N35: všichni respondenti
S38: =A1&" | "&A19&" | N="&INDEX($5:$5,1,$T$38) -> Vaše škola v posledních 12 měsících sociálně či jinak znevýhodněným dětem/žákům/studentům některou z vybraných položek? q10_2 Stravování mimo obědy (svačiny, ovoce a zelenina, pitný režim mimo kohoutkovou vodu atp.) | Celkem | N=4324 | T38: =MATCH($A$19,$4:$4,0) -> 3 | U38: =INDEX($11:$13,W38,MATCH($A$19,$4:$4,0)) -> 0.1026827012 | V38: =INDEX($11:$13,W38,3) -> 0.1026827012 | W38: 1
U39: =INDEX($11:$13,W39,MATCH($A$19,$4:$4,0)) -> 0.07192414431 | V39: =INDEX($11:$13,W39,3) -> 0.07192414431 | W39: 2
U40: =INDEX($11:$13,W40,MATCH($A$19,$4:$4,0)) -> 0.8253931545 | V40: =INDEX($11:$13,W40,3) -> 0.8253931545 | W40: 3

Sheet Q10_3
A1: Vaše škola v posledních 12 měsících sociálně či jinak znevýhodněným dětem/žákům/studentům některou z vybraných položek? q10_3 Školní pomůcky (psací potřeby, sešity, učebnice atp.)
A3: zpět na obsah | D3: Kraj
C4: Celkem | D4: Hlavní město Praha | E4: Jihočeský kraj | F4: Jihomoravský kraj | G4: Karlovarský kraj | H4: Kraj Vysočina | I4: Královéhradecký kraj | J4: Liberecký kraj | K4: Moravskoslezský kraj | L4: Olomoucký kraj | M4: Pardubický kraj | N4: Plzeňský kraj | O4: Středočeský kraj | P4: Ústecký kraj | Q4: Zlínský kraj
A5: Počet respondentů (N) | C5: 4324 | D5: 340 | E5: 272 | F5: 539 | G5: 100 | H5: 241 | I5: 261 | J5: 197 | K5: 397 | L5: 318 | M5: 259 | N5: 218 | O5: 629 | P5: 296 | Q5: 256
A7: Četnost odpovědí | B7: Ano, pravidelně | C7: 703 | D7: 53 | E7: 53 | F7: 74 | G7: 28 | H7: 38 | I7: 55 | J7: 37 | K7: 64 | L7: 66 | M7: 29 | N7: 29 | O7: 92 | P7: 47 | Q7: 38
B8: Ano, ale pouze výjimečně | C8: 499 | D8: 32 | E8: 36 | F8: 65 | G8: 4 | H8: 30 | I8: 23 | J8: 29 | K8: 61 | L8: 45 | M8: 27 | N8: 16 | O8: 74 | P8: 35 | Q8: 22
B9: Ne | C9: 3122 | D9: 255 | E9: 183 | F9: 400 | G9: 68 | H9: 173 | I9: 183 | J9: 131 | K9: 272 | L9: 207 | M9: 203 | N9: 173 | O9: 463 | P9: 214 | Q9: 196
A11: Relativní četnost odpovědí (%) | B11: Ano, pravidelně | C11: 0.1625809436 | D11: 0.1558823529 | E11: 0.1948529412 | F11: 0.1372912801 | G11: 0.28 | H11: 0.1576763485 | I11: 0.2107279693 | J11: 0.1878172589 | K11: 0.161209068 | L11: 0.2075471698 | M11: 0.111969112 | N11: 0.1330275229 | O11: 0.146263911 | P11: 0.1587837838 | Q11: 0.1484375
B12: Ano, ale pouze výjimečně | C12: 0.1154024052 | D12: 0.09411764706 | E12: 0.1323529412 | F12: 0.120593692 | G12: 0.04 | H12: 0.1244813278 | I12: 0.08812260536 | J12: 0.1472081218 | K12: 0.1536523929 | L12: 0.141509434 | M12: 0.1042471042 | N12: 0.07339449541 | O12: 0.1176470588 | P12: 0.1182432432 | Q12: 0.0859375
B13: Ne | C13: 0.7220166512 | D13: 0.75 | E13: 0.6727941176 | F13: 0.7421150278 | G13: 0.68 | H13: 0.7178423237 | I13: 0.7011494253 | J13: 0.6649746193 | K13: 0.685138539 | L13: 0.6509433962 | M13: 0.7837837838 | N13: 0.7935779817 | O13: 0.7360890302 | P13: 0.722972973 | Q13: 0.765625
A15: Statistická významnost | B15: Ano, pravidelně | G15: ++ | I15: + | L15: + | M15: -
B16: Ano, ale pouze výjimečně | G16: - | K16: + | N16: -
B17: Ne | L17: -- | M17: + | N17: +
A19: Celkem
A20: vyberte kategorii ze seznamu
F35: výběr více odpovědí | J35: výběr jedné odpovědi | N35: všichni respondenti
S38: =A1&" | "&A19&" | N="&INDEX($5:$5,1,$T$38) -> Vaše škola v posledních 12 měsících sociálně či jinak znevýhodněným dětem/žákům/studentům některou z vybraných položek? q10_3 Školní pomůcky (psací potřeby, sešity, učebnice atp.) | Celkem | N=4324 | T38: =MATCH($A$19,$4:$4,0) -> 3 | U38: =INDEX($11:$13,W38,MATCH($A$19,$4:$4,0)) -> 0.1625809436 | V38: =INDEX($11:$13,W38,3) -> 0.1625809436 | W38: 1
U39: =INDEX($11:$13,W39,MATCH($A$19,$4:$4,0)) -> 0.1154024052 | V39: =INDEX($11:$13,W39,3) -> 0.1154024052 | W39: 2
U40: =INDEX($11:$13,W40,MATCH($A$19,$4:$4,0)) -> 0.7220166512 | V40: =INDEX($11:$13,W40,3) -> 0.7220166512 | W40: 3

Sheet Q10_4
A1: Vaše škola v posledních 12 měsících sociálně či jinak znevýhodněným dětem/žákům/studentům některou z vybraných položek? q10_4 Vstupné (např. do divadla, planetária, knihovny, ZOO atp.)
A3: zpět na obsah | D3: Kraj
C4: Celkem | D4: Hlavní město Praha | E4: Jihočeský kraj | F4: Jihomoravský kraj | G4: Karlovarský kraj | H4: Kraj Vysočina | I4: Královéhradecký kraj | J4: Liberecký kraj | K4: Moravskoslezský kraj | L4: Olomoucký kraj | M4: Pardubický kraj | N4: Plzeňský kraj | O4: Středočeský kraj | P4: Ústecký kraj | Q4: Zlínský kraj
A5: Počet respondentů (N) | C5: 4324 | D5: 340 | E5: 272 | F5: 539 | G5: 100 | H5: 241 | I5: 261 | J5: 197 | K5: 397 | L5: 318 | M5: 259 | N5: 218 | O5: 629 | P5: 296 | Q5: 256
A7: Četnost odpovědí | B7: Ano, pravidelně | C7: 412 | D7: 44 | E7: 27 | F7: 26 | G7: 10 | H7: 21 | I7: 34 | J7: 25 | K7: 52 | L7: 34 | M7: 13 | N7: 20 | O7: 57 | P7: 28 | Q7: 21
B8: Ano, ale pouze výjimečně | C8: 661 | D8: 48 | E8: 52 | F8: 75 | G8: 19 | H8: 36 | I8: 37 | J8: 37 | K8: 70 | L8: 52 | M8: 35 | N8: 26 | O8: 90 | P8: 49 | Q8: 35
B9: Ne | C9: 3251 | D9: 248 | E9: 193 | F9: 438 | G9: 71 | H9: 184 | I9: 190 | J9: 135 | K9: 275 | L9: 232 | M9: 211 | N9: 172 | O9: 482 | P9: 219 | Q9: 200
A11: Relativní četnost odpovědí (%) | B11: Ano, pravidelně | C11: 0.09528214616 | D11: 0.1294117647 | E11: 0.09926470588 | F11: 0.04823747681 | G11: 0.1 | H11: 0.08713692946 | I11: 0.1302681992 | J11: 0.1269035533 | K11: 0.1309823678 | L11: 0.106918239 | M11: 0.05019305019 | N11: 0.09174311927 | O11: 0.0906200318 | P11: 0.09459459459 | Q11: 0.08203125
B12: Ano, ale pouze výjimečně | C12: 0.1528677151 | D12: 0.1411764706 | E12: 0.1911764706 | F12: 0.1391465677 | G12: 0.19 | H12: 0.1493775934 | I12: 0.1417624521 | J12: 0.1878172589 | K12: 0.1763224181 | L12: 0.1635220126 | M12: 0.1351351351 | N12: 0.119266055 | O12: 0.1430842607 | P12: 0.1655405405 | Q12: 0.13671875
B13: Ne | C13: 0.7518501388 | D13: 0.7294117647 | E13: 0.7095588235 | F13: 0.8126159555 | G13: 0.71 | H13: 0.7634854772 | I13: 0.7279693487 | J13: 0.6852791878 | K13: 0.6926952141 | L13: 0.7295597484 | M13: 0.8146718147 | N13: 0.7889908257 | O13: 0.7662957075 | P13: 0.7398648649 | Q13: 0.78125
A15: Statistická významnost | B15: Ano, pravidelně | D15: + | F15: --- | I15: + | K15: + | M15: -
B16: Ano, ale pouze výjimečně
B17: Ne | F17: +++ | J17: - | K17: -- | M17: +
A19: Celkem
A20: vyberte kategorii ze seznamu
F35: výběr více odpovědí | J35: výběr jedné odpovědi | N35: všichni respondenti
S38: =A1&" | "&A19&" | N="&INDEX($5:$5,1,$T$38) -> Vaše škola v posledních 12 měsících sociálně či jinak znevýhodněným dětem/žákům/studentům některou z vybraných položek? q10_4 Vstupné (např. do divadla, planetária, knihovny, ZOO atp.) | Celkem | N=4324 | T38: =MATCH($A$19,$4:$4,0) -> 3 | U38: =INDEX($11:$13,W38,MATCH($A$19,$4:$4,0)) -> 0.09528214616 | V38: =INDEX($11:$13,W38,3) -> 0.09528214616 | W38: 1
U39: =INDEX($11:$13,W39,MATCH($A$19,$4:$4,0)) -> 0.1528677151 | V39: =INDEX($11:$13,W39,3) -> 0.1528677151 | W39: 2
U40: =INDEX($11:$13,W40,MATCH($A$19,$4:$4,0)) -> 0.7518501388 | V40: =INDEX($11:$13,W40,3) -> 0.7518501388 | W40: 3

Sheet Q10_5
A1: Vaše škola v posledních 12 měsících sociálně či jinak znevýhodněným dětem/žákům/studentům některou z vybraných položek? q10_5 Náklady spojené s účastí na akcích pořádaných pro danou třídu (školní výlet, škola v přírodě atp.)
A3: zpět na obsah | D3: Kraj
C4: Celkem | D4: Hlavní město Praha | E4: Jihočeský kraj | F4: Jihomoravský kraj | G4: Karlovarský kraj | H4: Kraj Vysočina | I4: Královéhradecký kraj | J4: Liberecký kraj | K4: Moravskoslezský kraj | L4: Olomoucký kraj | M4: Pardubický kraj | N4: Plzeňský kraj | O4: Středočeský kraj | P4: Ústecký kraj | Q4: Zlínský kraj
A5: Počet respondentů (N) | C5: 4324 | D5: 340 | E5: 272 | F5: 539 | G5: 100 | H5: 241 | I5: 261 | J5: 197 | K5: 397 | L5: 318 | M5: 259 | N5: 218 | O5: 629 | P5: 296 | Q5: 256
A7: Četnost odpovědí | B7: Ano, pravidelně | C7: 323 | D7: 39 | E7: 25 | F7: 20 | G7: 10 | H7: 14 | I7: 31 | J7: 17 | K7: 34 | L7: 24 | M7: 11 | N7: 14 | O7: 47 | P7: 22 | Q7: 15
B8: Ano, ale pouze výjimečně | C8: 548 | D8: 49 | E8: 42 | F8: 54 | G8: 13 | H8: 29 | I8: 32 | J8: 26 | K8: 72 | L8: 49 | M8: 20 | N8: 23 | O8: 67 | P8: 42 | Q8: 30
B9: Ne | C9: 3453 | D9: 252 | E9: 205 | F9: 465 | G9: 77 | H9: 198 | I9: 198 | J9: 154 | K9: 291 | L9: 245 | M9: 228 | N9: 181 | O9: 515 | P9: 232 | Q9: 211
A11: Relativní četnost odpovědí (%) | B11: Ano, pravidelně | C11: 0.07469935245 | D11: 0.1147058824 | E11: 0.09191176471 | F11: 0.03710575139 | G11: 0.1 | H11: 0.05809128631 | I11: 0.1187739464 | J11: 0.08629441624 | K11: 0.08564231738 | L11: 0.07547169811 | M11: 0.04247104247 | N11: 0.06422018349 | O11: 0.0747217806 | P11: 0.07432432432 | Q11: 0.05859375
B12: Ano, ale pouze výjimečně | C12: 0.1267345051 | D12: 0.1441176471 | E12: 0.1544117647 | F12: 0.1001855288 | G12: 0.13 | H12: 0.1203319502 | I12: 0.122605364 | J12: 0.1319796954 | K12: 0.1813602015 | L12: 0.1540880503 | M12: 0.07722007722 | N12: 0.1055045872 | O12: 0.106518283 | P12: 0.1418918919 | Q12: 0.1171875
B13: Ne | C13: 0.7985661425 | D13: 0.7411764706 | E13: 0.7536764706 | F13: 0.8627087199 | G13: 0.77 | H13: 0.8215767635 | I13: 0.7586206897 | J13: 0.7817258883 | K13: 0.7329974811 | L13: 0.7704402516 | M13: 0.8803088803 | N13: 0.8302752294 | O13: 0.8187599364 | P13: 0.7837837838 | Q13: 0.82421875
A15: Statistická významnost | B15: Ano, pravidelně | D15: ++ | F15: --- | I15: ++ | M15: -
B16: Ano, ale pouze výjimečně | F16: - | K16: +++ | M16: -
B17: Ne | D17: -- | F17: +++ | K17: --- | M17: +++
A19: Celkem
A20: vyberte kategorii ze seznamu
F35: výběr více odpovědí | J35: výběr jedné odpovědi | N35: všichni respondenti
S38: =A1&" | "&A19&" | N="&INDEX($5:$5,1,$T$38) -> Vaše škola v posledních 12 měsících sociálně či jinak znevýhodněným dětem/žákům/studentům některou z vybraných položek? q10_5 Náklady spojené s účastí na akcích pořádaných pro danou třídu (školní výlet, škola v přírodě atp.) | Celkem | N=4324 | T38: =MATCH($A$19,$4:$4,0) -> 3 | U38: =INDEX($11:$13,W38,MATCH($A$19,$4:$4,0)) -> 0.07469935245 | V38: =INDEX($11:$13,W38,3) -> 0.07469935245 | W38: 1
U39: =INDEX($11:$13,W39,MATCH($A$19,$4:$4,0)) -> 0.1267345051 | V39: =INDEX($11:$13,W39,3) -> 0.1267345051 | W39: 2
U40: =INDEX($11:$13,W40,MATCH($A$19,$4:$4,0)) -> 0.7985661425 | V40: =INDEX($11:$13,W40,3) -> 0.7985661425 | W40: 3

Sheet Q10_6
A1: Vaše škola v posledních 12 měsících sociálně či jinak znevýhodněným dětem/žákům/studentům některou z vybraných položek? q10_6 Náklady spojené s účastí na volitelných celoškolních akcích (např. zahraniční exkurze, lyžařské zájezdy atp.)
A3: zpět na obsah | D3: Kraj
C4: Celkem | D4: Hlavní město Praha | E4: Jihočeský kraj | F4: Jihomoravský kraj | G4: Karlovarský kraj | H4: Kraj Vysočina | I4: Královéhradecký kraj | J4: Liberecký kraj | K4: Moravskoslezský kraj | L4: Olomoucký kraj | M4: Pardubický kraj | N4: Plzeňský kraj | O4: Středočeský kraj | P4: Ústecký kraj | Q4: Zlínský kraj
A5: Počet respondentů (N) | C5: 4324 | D5: 340 | E5: 272 | F5: 539 | G5: 100 | H5: 241 | I5: 261 | J5: 197 | K5: 397 | L5: 318 | M5: 259 | N5: 218 | O5: 629 | P5: 296 | Q5: 256
A7: Četnost odpovědí | B7: Ano, pravidelně | C7: 114 | D7: 15 | E7: 9 | F7: 6 | G7: 2 | H7: 8 | I7: 11 | J7: 10 | K7: 16 | L7: 8 | M7: 3 | N7: 6 | O7: 8 | P7: 8 | Q7: 4
B8: Ano, ale pouze výjimečně | C8: 166 | D8: 26 | E8: 12 | F8: 10 | G8: 5 | H8: 8 | I8: 14 | J8: 8 | K8: 21 | L8: 11 | M8: 8 | N8: 7 | O8: 21 | P8: 7 | Q8: 8
B9: Ne | C9: 4044 | D9: 299 | E9: 251 | F9: 523 | G9: 93 | H9: 225 | I9: 236 | J9: 179 | K9: 360 | L9: 299 | M9: 248 | N9: 205 | O9: 600 | P9: 281 | Q9: 244
A11: Relativní četnost odpovědí (%) | B11: Ano, pravidelně | C11: 0.02636447734 | D11: 0.04411764706 | E11: 0.03308823529 | F11: 0.01113172542 | G11: 0.02 | H11: 0.03319502075 | I11: 0.04214559387 | J11: 0.05076142132 | K11: 0.040302267 | L11: 0.0251572327 | M11: 0.01158301158 | N11: 0.02752293578 | O11: 0.01271860095 | P11: 0.02702702703 | Q11: 0.015625
B12: Ano, ale pouze výjimečně | C12: 0.03839037928 | D12: 0.07647058824 | E12: 0.04411764706 | F12: 0.0185528757 | G12: 0.05 | H12: 0.03319502075 | I12: 0.05363984674 | J12: 0.04060913706 | K12: 0.05289672544 | L12: 0.03459119497 | M12: 0.03088803089 | N12: 0.03211009174 | O12: 0.0333863275 | P12: 0.02364864865 | Q12: 0.03125
B13: Ne | C13: 0.9352451434 | D13: 0.8794117647 | E13: 0.9227941176 | F13: 0.9703153989 | G13: 0.93 | H13: 0.9336099585 | I13: 0.9042145594 | J13: 0.9086294416 | K13: 0.9068010076 | L13: 0.9402515723 | M13: 0.9575289575 | N13: 0.9403669725 | O13: 0.9538950715 | P13: 0.9493243243 | Q13: 0.953125
A15: Statistická významnost | B15: Ano, pravidelně | D15: + | F15: - | J15: + | O15: -
B16: Ano, ale pouze výjimečně | D16: +++ | F16: -
B17: Ne | D17: --- | F17: +++ | I17: - | K17: - | O17: +
A19: Celkem
A20: vyberte kategorii ze seznamu
F35: výběr více odpovědí | J35: výběr jedné odpovědi | N35: všichni respondenti
S38: =A1&" | "&A19&" | N="&INDEX($5:$5,1,$T$38) -> Vaše škola v posledních 12 měsících sociálně či jinak znevýhodněným dětem/žákům/studentům některou z vybraných položek? q10_6 Náklady spojené s účastí na volitelných celoškolních akcích (např. zahraniční exkurze, lyžařské zájezdy atp.) | Celkem | N=4324 | T38: =MATCH($A$19,$4:$4,0) -> 3 | U38: =INDEX($11:$13,W38,MATCH($A$19,$4:$4,0)) -> 0.02636447734 | V38: =INDEX($11:$13,W38,3) -> 0.02636447734 | W38: 1
U39: =INDEX($11:$13,W39,MATCH($A$19,$4:$4,0)) -> 0.03839037928 | V39: =INDEX($11:$13,W39,3) -> 0.03839037928 | W39: 2
U40: =INDEX($11:$13,W40,MATCH($A$19,$4:$4,0)) -> 0.9352451434 | V40: =INDEX($11:$13,W40,3) -> 0.9352451434 | W40: 3

Sheet Q10_7
A1: Vaše škola v posledních 12 měsících sociálně či jinak znevýhodněným dětem/žákům/studentům některou z vybraných položek? q10_7 Náklady spojené s účastí na zájmovém vzdělávání (školní družiny, školní kluby, kroužky ve škole)
A3: zpět na obsah | D3: Kraj
C4: Celkem | D4: Hlavní město Praha | E4: Jihočeský kraj | F4: Jihomoravský kraj | G4: Karlovarský kraj | H4: Kraj Vysočina | I4: Královéhradecký kraj | J4: Liberecký kraj | K4: Moravskoslezský kraj | L4: Olomoucký kraj | M4: Pardubický kraj | N4: Plzeňský kraj | O4: Středočeský kraj | P4: Ústecký kraj | Q4: Zlínský kraj
A5: Počet respondentů (N) | C5: 4324 | D5: 340 | E5: 272 | F5: 539 | G5: 100 | H5: 241 | I5: 261 | J5: 197 | K5: 397 | L5: 318 | M5: 259 | N5: 218 | O5: 629 | P5: 296 | Q5: 256
A7: Četnost odpovědí | B7: Ano, pravidelně | C7: 257 | D7: 27 | E7: 23 | F7: 23 | G7: 6 | H7: 12 | I7: 17 | J7: 13 | K7: 36 | L7: 22 | M7: 11 | N7: 12 | O7: 22 | P7: 20 | Q7: 13
B8: Ano, ale pouze výjimečně | C8: 218 | D8: 24 | E8: 15 | F8: 26 | G8: 2 | H8: 11 | I8: 19 | J8: 9 | K8: 27 | L8: 16 | M8: 14 | N8: 8 | O8: 27 | P8: 13 | Q8: 7
B9: Ne | C9: 3849 | D9: 289 | E9: 234 | F9: 490 | G9: 92 | H9: 218 | I9: 225 | J9: 175 | K9: 334 | L9: 280 | M9: 234 | N9: 198 | O9: 580 | P9: 263 | Q9: 236
A11: Relativní četnost odpovědí (%) | B11: Ano, pravidelně | C11: 0.05943570768 | D11: 0.07941176471 | E11: 0.08455882353 | F11: 0.0426716141 | G11: 0.06 | H11: 0.04979253112 | I11: 0.06513409962 | J11: 0.06598984772 | K11: 0.09068010076 | L11: 0.06918238994 | M11: 0.04247104247 | N11: 0.05504587156 | O11: 0.03497615262 | P11: 0.06756756757 | Q11: 0.05078125
B12: Ano, ale pouze výjimečně | C12: 0.05041628122 | D12: 0.07058823529 | E12: 0.05514705882 | F12: 0.04823747681 | G12: 0.02 | H12: 0.04564315353 | I12: 0.07279693487 | J12: 0.04568527919 | K12: 0.06801007557 | L12: 0.05031446541 | M12: 0.05405405405 | N12: 0.03669724771 | O12: 0.04292527822 | P12: 0.04391891892 | Q12: 0.02734375
B13: Ne | C13: 0.8901480111 | D13: 0.85 | E13: 0.8602941176 | F13: 0.9090909091 | G13: 0.92 | H13: 0.9045643154 | I13: 0.8620689655 | J13: 0.8883248731 | K13: 0.8413098237 | L13: 0.8805031447 | M13: 0.9034749035 | N13: 0.9082568807 | O13: 0.9220985692 | P13: 0.8885135135 | Q13: 0.921875
A15: Statistická významnost | B15: Ano, pravidelně | K15: ++ | O15: --
B16: Ano, ale pouze výjimečně
B17: Ne | D17: - | K17: -- | O17: ++
A19: Celkem
A20: vyberte kategorii ze seznamu
F35: výběr více odpovědí | J35: výběr jedné odpovědi | N35: všichni respondenti
S38: =A1&" | "&A19&" | N="&INDEX($5:$5,1,$T$38) -> Vaše škola v posledních 12 měsících sociálně či jinak znevýhodněným dětem/žákům/studentům některou z vybraných položek? q10_7 Náklady spojené s účastí na zájmovém vzdělávání (školní družiny, školní kluby, kroužky ve škole) | Celkem | N=4324 | T38: =MATCH($A$19,$4:$4,0) -> 3 | U38: =INDEX($11:$13,W38,MATCH($A$19,$4:$4,0)) -> 0.05943570768 | V38: =INDEX($11:$13,W38,3) -> 0.05943570768 | W38: 1
U39: =INDEX($11:$13,W39,MATCH($A$19,$4:$4,0)) -> 0.05041628122 | V39: =INDEX($11:$13,W39,3) -> 0.05041628122 | W39: 2
U40: =INDEX($11:$13,W40,MATCH($A$19,$4:$4,0)) -> 0.8901480111 | V40: =INDEX($11:$13,W40,3) -> 0.8901480111 | W40: 3

Sheet Q10_8
A1: Vaše škola v posledních 12 měsících sociálně či jinak znevýhodněným dětem/žákům/studentům některou z vybraných položek? q10_8 Poplatky za kroužky konané mimo školu
A3: zpět na obsah | D3: Kraj
C4: Celkem | D4: Hlavní město Praha | E4: Jihočeský kraj | F4: Jihomoravský kraj | G4: Karlovarský kraj | H4: Kraj Vysočina | I4: Královéhradecký kraj | J4: Liberecký kraj | K4: Moravskoslezský kraj | L4: Olomoucký kraj | M4: Pardubický kraj | N4: Plzeňský kraj | O4: Středočeský kraj | P4: Ústecký kraj | Q4: Zlínský kraj
A5: Počet respondentů (N) | C5: 4324 | D5: 340 | E5: 272 | F5: 539 | G5: 100 | H5: 241 | I5: 261 | J5: 197 | K5: 397 | L5: 318 | M5: 259 | N5: 218 | O5: 629 | P5: 296 | Q5: 256
A7: Četnost odpovědí | B7: Ano, pravidelně | C7: 36 | D7: 6 | E7: 3 | F7: 3 | G7: 0 | H7: 3 | I7: 2 | J7: 1 | K7: 1 | L7: 2 | M7: 3 | N7: 4 | O7: 4 | P7: 1 | Q7: 3
B8: Ano, ale pouze výjimečně | C8: 72 | D8: 8 | E8: 8 | F8: 7 | G8: 1 | H8: 4 | I8: 4 | J8: 4 | K8: 9 | L8: 8 | M8: 4 | N8: 0 | O8: 6 | P8: 6 | Q8: 3
B9: Ne | C9: 4216 | D9: 326 | E9: 261 | F9: 529 | G9: 99 | H9: 234 | I9: 255 | J9: 192 | K9: 387 | L9: 308 | M9: 252 | N9: 214 | O9: 619 | P9: 289 | Q9: 250
A11: Relativní četnost odpovědí (%) | B11: Ano, pravidelně | C11: 0.008325624422 | D11: 0.01764705882 | E11: 0.01102941176 | F11: 0.005565862709 | G11: 0 | H11: 0.01244813278 | I11: 0.007662835249 | J11: 0.005076142132 | K11: 0.002518891688 | L11: 0.006289308176 | M11: 0.01158301158 | N11: 0.01834862385 | O11: 0.006359300477 | P11: 0.003378378378 | Q11: 0.01171875
B12: Ano, ale pouze výjimečně | C12: 0.01665124884 | D12: 0.02352941176 | E12: 0.02941176471 | F12: 0.01298701299 | G12: 0.01 | H12: 0.01659751037 | I12: 0.0153256705 | J12: 0.02030456853 | K12: 0.02267002519 | L12: 0.0251572327 | M12: 0.01544401544 | N12: 0 | O12: 0.009538950715 | P12: 0.02027027027 | Q12: 0.01171875
B13: Ne | C13: 0.9750231267 | D13: 0.9588235294 | E13: 0.9595588235 | F13: 0.9814471243 | G13: 0.99 | H13: 0.9709543568 | I13: 0.9770114943 | J13: 0.9746192893 | K13: 0.9748110831 | L13: 0.9685534591 | M13: 0.972972973 | N13: 0.9816513761 | O13: 0.9841017488 | P13: 0.9763513514 | Q13: 0.9765625
A15: Statistická významnost | B15: Ano, pravidelně | D15: +
B16: Ano, ale pouze výjimečně | N16: -
B17: Ne | D17: -
A19: Celkem
A20: vyberte kategorii ze seznamu
F35: výběr více odpovědí | J35: výběr jedné odpovědi | N35: všichni respondenti
S38: =A1&" | "&A19&" | N="&INDEX($5:$5,1,$T$38) -> Vaše škola v posledních 12 měsících sociálně či jinak znevýhodněným dětem/žákům/studentům některou z vybraných položek? q10_8 Poplatky za kroužky konané mimo školu | Celkem | N=4324 | T38: =MATCH($A$19,$4:$4,0) -> 3 | U38: =INDEX($11:$13,W38,MATCH($A$19,$4:$4,0)) -> 0.008325624422 | V38: =INDEX($11:$13,W38,3) -> 0.008325624422 | W38: 1
U39: =INDEX($11:$13,W39,MATCH($A$19,$4:$4,0)) -> 0.01665124884 | V39: =INDEX($11:$13,W39,3) -> 0.01665124884 | W39: 2
U40: =INDEX($11:$13,W40,MATCH($A$19,$4:$4,0)) -> 0.9750231267 | V40: =INDEX($11:$13,W40,3) -> 0.9750231267 | W40: 3

Sheet Q10_9
A1: Vaše škola v posledních 12 měsících sociálně či jinak znevýhodněným dětem/žákům/studentům některou z vybraných položek? q10_9 Další materiální potřeby dítěte/žáka/studenta (např. vybavení na školní akce, školní taška, vybavení na tělesnou výchovu atp.)
A3: zpět na obsah | D3: Kraj
C4: Celkem | D4: Hlavní město Praha | E4: Jihočeský kraj | F4: Jihomoravský kraj | G4: Karlovarský kraj | H4: Kraj Vysočina | I4: Královéhradecký kraj | J4: Liberecký kraj | K4: Moravskoslezský kraj | L4: Olomoucký kraj | M4: Pardubický kraj | N4: Plzeňský kraj | O4: Středočeský kraj | P4: Ústecký kraj | Q4: Zlínský kraj
A5: Počet respondentů (N) | C5: 4324 | D5: 340 | E5: 272 | F5: 539 | G5: 100 | H5: 241 | I5: 261 | J5: 197 | K5: 397 | L5: 318 | M5: 259 | N5: 218 | O5: 629 | P5: 296 | Q5: 256
A7: Četnost odpovědí | B7: Ano, pravidelně | C7: 118 | D7: 8 | E7: 12 | F7: 13 | G7: 6 | H7: 6 | I7: 6 | J7: 12 | K7: 11 | L7: 7 | M7: 6 | N7: 5 | O7: 16 | P7: 8 | Q7: 2
B8: Ano, ale pouze výjimečně | C8: 253 | D8: 20 | E8: 15 | F8: 26 | G8: 2 | H8: 4 | I8: 21 | J8: 15 | K8: 34 | L8: 20 | M8: 9 | N8: 7 | O8: 40 | P8: 24 | Q8: 16
B9: Ne | C9: 3953 | D9: 312 | E9: 245 | F9: 500 | G9: 92 | H9: 231 | I9: 234 | J9: 170 | K9: 352 | L9: 291 | M9: 244 | N9: 206 | O9: 573 | P9: 264 | Q9: 238
A11: Relativní četnost odpovědí (%) | B11: Ano, pravidelně | C11: 0.02728954672 | D11: 0.02352941176 | E11: 0.04411764706 | F11: 0.0241187384 | G11: 0.06 | H11: 0.02489626556 | I11: 0.02298850575 | J11: 0.06091370558 | K11: 0.02770780856 | L11: 0.02201257862 | M11: 0.02316602317 | N11: 0.02293577982 | O11: 0.02543720191 | P11: 0.02702702703 | Q11: 0.0078125
B12: Ano, ale pouze výjimečně | C12: 0.0585106383 | D12: 0.05882352941 | E12: 0.05514705882 | F12: 0.04823747681 | G12: 0.02 | H12: 0.01659751037 | I12: 0.08045977011 | J12: 0.07614213198 | K12: 0.08564231738 | L12: 0.06289308176 | M12: 0.03474903475 | N12: 0.03211009174 | O12: 0.06359300477 | P12: 0.08108108108 | Q12: 0.0625
B13: Ne | C13: 0.914199815 | D13: 0.9176470588 | E13: 0.9007352941 | F13: 0.9276437848 | G13: 0.92 | H13: 0.9585062241 | I13: 0.8965517241 | J13: 0.8629441624 | K13: 0.8866498741 | L13: 0.9150943396 | M13: 0.9420849421 | N13: 0.9449541284 | O13: 0.9109697933 | P13: 0.8918918919 | Q13: 0.9296875
A15: Statistická významnost | B15: Ano, pravidelně | G15: + | J15: ++ | Q15: -
B16: Ano, ale pouze výjimečně | H16: -- | K16: +
B17: Ne | H17: + | J17: -- | K17: -
A19: Celkem
A20: vyberte kategorii ze seznamu
F35: výběr více odpovědí | J35: výběr jedné odpovědi | N35: všichni respondenti
S38: =A1&" | "&A19&" | N="&INDEX($5:$5,1,$T$38) -> Vaše škola v posledních 12 měsících sociálně či jinak znevýhodněným dětem/žákům/studentům některou z vybraných položek? q10_9 Další materiální potřeby dítěte/žáka/studenta (např. vybavení na školní akce, školní taška, vybavení na tělesnou výchovu atp.) | Celkem | N=4324 | T38: =MATCH($A$19,$4:$4,0) -> 3 | U38: =INDEX($11:$13,W38,MATCH($A$19,$4:$4,0)) -> 0.02728954672 | V38: =INDEX($11:$13,W38,3) -> 0.02728954672 | W38: 1
U39: =INDEX($11:$13,W39,MATCH($A$19,$4:$4,0)) -> 0.0585106383 | V39: =INDEX($11:$13,W39,3) -> 0.0585106383 | W39: 2
U40: =INDEX($11:$13,W40,MATCH($A$19,$4:$4,0)) -> 0.914199815 | V40: =INDEX($11:$13,W40,3) -> 0.914199815 | W40: 3

Sheet Q10_10
A1: Vaše škola v posledních 12 měsících sociálně či jinak znevýhodněným dětem/žákům/studentům některou z vybraných položek? q10_10 Technické vybavení (notebook, tablet, internetové připojení atp.)
A3: zpět na obsah | D3: Kraj
C4: Celkem | D4: Hlavní město Praha | E4: Jihočeský kraj | F4: Jihomoravský kraj | G4: Karlovarský kraj | H4: Kraj Vysočina | I4: Královéhradecký kraj | J4: Liberecký kraj | K4: Moravskoslezský kraj | L4: Olomoucký kraj | M4: Pardubický kraj | N4: Plzeňský kraj | O4: Středočeský kraj | P4: Ústecký kraj | Q4: Zlínský kraj
A5: Počet respondentů (N) | C5: 4324 | D5: 340 | E5: 272 | F5: 539 | G5: 100 | H5: 241 | I5: 261 | J5: 197 | K5: 397 | L5: 318 | M5: 259 | N5: 218 | O5: 629 | P5: 296 | Q5: 256
A7: Četnost odpovědí | B7: Ano, pravidelně | C7: 331 | D7: 23 | E7: 23 | F7: 40 | G7: 11 | H7: 26 | I7: 29 | J7: 19 | K7: 30 | L7: 24 | M7: 13 | N7: 14 | O7: 43 | P7: 25 | Q7: 11
B8: Ano, ale pouze výjimečně | C8: 320 | D8: 21 | E8: 21 | F8: 44 | G8: 4 | H8: 14 | I8: 21 | J8: 12 | K8: 43 | L8: 23 | M8: 12 | N8: 17 | O8: 46 | P8: 21 | Q8: 21
B9: Ne | C9: 3673 | D9: 296 | E9: 228 | F9: 455 | G9: 85 | H9: 201 | I9: 211 | J9: 166 | K9: 324 | L9: 271 | M9: 234 | N9: 187 | O9: 540 | P9: 250 | Q9: 224
A11: Relativní četnost odpovědí (%) | B11: Ano, pravidelně | C11: 0.07654949121 | D11: 0.06764705882 | E11: 0.08455882353 | F11: 0.07421150278 | G11: 0.11 | H11: 0.1078838174 | I11: 0.1111111111 | J11: 0.09644670051 | K11: 0.07556675063 | L11: 0.07547169811 | M11: 0.05019305019 | N11: 0.06422018349 | O11: 0.06836248013 | P11: 0.08445945946 | Q11: 0.04296875
B12: Ano, ale pouze výjimečně | C12: 0.07400555042 | D12: 0.06176470588 | E12: 0.07720588235 | F12: 0.08163265306 | G12: 0.04 | H12: 0.05809128631 | I12: 0.08045977011 | J12: 0.06091370558 | K12: 0.1083123426 | L12: 0.07232704403 | M12: 0.04633204633 | N12: 0.07798165138 | O12: 0.07313195548 | P12: 0.07094594595 | Q12: 0.08203125
B13: Ne | C13: 0.8494449584 | D13: 0.8705882353 | E13: 0.8382352941 | F13: 0.8441558442 | G13: 0.85 | H13: 0.8340248963 | I13: 0.8084291188 | J13: 0.8426395939 | K13: 0.8161209068 | L13: 0.8522012579 | M13: 0.9034749035 | N13: 0.8577981651 | O13: 0.8585055644 | P13: 0.8445945946 | Q13: 0.875
A15: Statistická významnost | B15: Ano, pravidelně | I15: + | Q15: -
B16: Ano, ale pouze výjimečně | K16: ++
B17: Ne | M17: +
A19: Celkem
A20: vyberte kategorii ze seznamu
F35: výběr více odpovědí | J35: výběr jedné odpovědi | N35: všichni respondenti
S38: =A1&" | "&A19&" | N="&INDEX($5:$5,1,$T$38) -> Vaše škola v posledních 12 měsících sociálně či jinak znevýhodněným dětem/žákům/studentům některou z vybraných položek? q10_10 Technické vybavení (notebook, tablet, internetové připojení atp.) | Celkem | N=4324 | T38: =MATCH($A$19,$4:$4,0) -> 3 | U38: =INDEX($11:$13,W38,MATCH($A$19,$4:$4,0)) -> 0.07654949121 | V38: =INDEX($11:$13,W38,3) -> 0.07654949121 | W38: 1
U39: =INDEX($11:$13,W39,MATCH($A$19,$4:$4,0)) -> 0.07400555042 | V39: =INDEX($11:$13,W39,3) -> 0.07400555042 | W39: 2
U40: =INDEX($11:$13,W40,MATCH($A$19,$4:$4,0)) -> 0.8494449584 | V40: =INDEX($11:$13,W40,3) -> 0.8494449584 | W40: 3

Sheet Q10_11
A1: Vaše škola v posledních 12 měsících sociálně či jinak znevýhodněným dětem/žákům/studentům některou z vybraných položek? q10_11 Doučování
A3: zpět na obsah | D3: Kraj
C4: Celkem | D4: Hlavní město Praha | E4: Jihočeský kraj | F4: Jihomoravský kraj | G4: Karlovarský kraj | H4: Kraj Vysočina | I4: Královéhradecký kraj | J4: Liberecký kraj | K4: Moravskoslezský kraj | L4: Olomoucký kraj | M4: Pardubický kraj | N4: Plzeňský kraj | O4: Středočeský kraj | P4: Ústecký kraj | Q4: Zlínský kraj
A5: Počet respondentů (N) | C5: 4324 | D5: 340 | E5: 272 | F5: 539 | G5: 100 | H5: 241 | I5: 261 | J5: 197 | K5: 397 | L5: 318 | M5: 259 | N5: 218 | O5: 629 | P5: 296 | Q5: 256
A7: Četnost odpovědí | B7: Ano, pravidelně | C7: 542 | D7: 44 | E7: 44 | F7: 65 | G7: 9 | H7: 39 | I7: 40 | J7: 29 | K7: 48 | L7: 43 | M7: 20 | N7: 25 | O7: 69 | P7: 33 | Q7: 34
B8: Ano, ale pouze výjimečně | C8: 119 | D8: 9 | E8: 7 | F8: 12 | G8: 1 | H8: 7 | I8: 9 | J8: 5 | K8: 18 | L8: 7 | M8: 10 | N8: 5 | O8: 16 | P8: 6 | Q8: 7
B9: Ne | C9: 3663 | D9: 287 | E9: 221 | F9: 462 | G9: 90 | H9: 195 | I9: 212 | J9: 163 | K9: 331 | L9: 268 | M9: 229 | N9: 188 | O9: 544 | P9: 257 | Q9: 215
A11: Relativní četnost odpovědí (%) | B11: Ano, pravidelně | C11: 0.125346901 | D11: 0.1294117647 | E11: 0.1617647059 | F11: 0.120593692 | G11: 0.09 | H11: 0.1618257261 | I11: 0.153256705 | J11: 0.1472081218 | K11: 0.120906801 | L11: 0.1352201258 | M11: 0.07722007722 | N11: 0.1146788991 | O11: 0.1096979332 | P11: 0.1114864865 | Q11: 0.1328125
B12: Ano, ale pouze výjimečně | C12: 0.02752081406 | D12: 0.02647058824 | E12: 0.02573529412 | F12: 0.02226345083 | G12: 0.01 | H12: 0.02904564315 | I12: 0.03448275862 | J12: 0.02538071066 | K12: 0.04534005038 | L12: 0.02201257862 | M12: 0.03861003861 | N12: 0.02293577982 | O12: 0.02543720191 | P12: 0.02027027027 | Q12: 0.02734375
B13: Ne | C13: 0.8471322849 | D13: 0.8441176471 | E13: 0.8125 | F13: 0.8571428571 | G13: 0.9 | H13: 0.8091286307 | I13: 0.8122605364 | J13: 0.8274111675 | K13: 0.8337531486 | L13: 0.8427672956 | M13: 0.8841698842 | N13: 0.8623853211 | O13: 0.8648648649 | P13: 0.8682432432 | Q13: 0.83984375
A15: Statistická významnost | B15: Ano, pravidelně | M15: -
B16: Ano, ale pouze výjimečně | K16: +
B17: Ne
A19: Celkem
A20: vyberte kategorii ze seznamu
F35: výběr více odpovědí | J35: výběr jedné odpovědi | N35: všichni respondenti
S38: =A1&" | "&A19&" | N="&INDEX($5:$5,1,$T$38) -> Vaše škola v posledních 12 měsících sociálně či jinak znevýhodněným dětem/žákům/studentům některou z vybraných položek? q10_11 Doučování | Celkem | N=4324 | T38: =MATCH($A$19,$4:$4,0) -> 3 | U38: =INDEX($11:$13,W38,MATCH($A$19,$4:$4,0)) -> 0.125346901 | V38: =INDEX($11:$13,W38,3) -> 0.125346901 | W38: 1
U39: =INDEX($11:$13,W39,MATCH($A$19,$4:$4,0)) -> 0.02752081406 | V39: =INDEX($11:$13,W39,3) -> 0.02752081406 | W39: 2
U40: =INDEX($11:$13,W40,MATCH($A$19,$4:$4,0)) -> 0.8471322849 | V40: =INDEX($11:$13,W40,3) -> 0.8471322849 | W40: 3
